{"text_format":"1","workbook":"xlsx","n_sheets":7,"sheets":["Debit transactions","Peregrine transactions","Lookup","Sheet3","Sheet2","Sheet1","Sheet4"],"not_rendered":{"charts":0,"images":0,"macros":0,"external_links":0,"defined_names":8,"comments":0,"pivot_tables":0},"unopened":[],"bounds":{"document_bytes":16777216,"sheet_cells":100000,"rows_first":2000,"rows_last":500,"rows_between":2000,"halvings":0,"cell_chars":16384,"cell_head_chars":4096},"cells_cut":0,"cells_raw":0,"read":"whole","date_system":"1900"}

{"sheet":"Debit transactions","index":0,"n_rows":141,"n_cols":10,"rows_kept":141,"cut":false,"hidden":false,"merged":[]}
["Date","Description","Amount","Running Bal.","Who","Bill to","Column1","Expense Report?","Invoice","Charge Receipt"]
["2022-01-01","Beginning balance as of 01/01/2022",null,663.71,{"$f":"IFERROR(INDEX(Lookup!$B$2:$C$5,MATCH(RIGHT(TRIM(Table14[[#This Row],[Description]]),4),Lookup!$B$2:$B$5,0),2),\"\")","v":""}]
["2022-01-03","OWL FOR THUNDERBI 01/02 PURCHASE WIESBADEN DEBIT CARD *7429",-11.38,{"$f":"D2+Table14[[#This Row],[Amount]]","v":652.33000000000004},{"$f":"IFERROR(INDEX(Lookup!$B$2:$C$5,MATCH(RIGHT(TRIM(Table14[[#This Row],[Description]]),4),Lookup!$B$2:$B$5,0),2),\"\")","v":"FWC"},"AGG","Outlook","221226 - FWC ER Mastercard EOY-2022","-","220102 - OWL invoice 3-47107.pdf"]
["2022-01-03","Monthly Fee Business Adv Relationship",-29.95,{"$f":"D3+Table14[[#This Row],[Amount]]","v":622.38},{"$f":"IFERROR(INDEX(Lookup!$B$2:$C$5,MATCH(RIGHT(TRIM(Table14[[#This Row],[Description]]),4),Lookup!$B$2:$B$5,0),2),\"\")","v":""},"AGG",null,null,"-"]
["2022-01-03","INTERNATIONAL TRANSACTION FEE 01/02 OWL FOR THUNDERBI WIESBADEN DEBIT CARD *7429",-0.34,{"$f":"D4+Table14[[#This Row],[Amount]]","v":622.04},{"$f":"IFERROR(INDEX(Lookup!$B$2:$C$5,MATCH(RIGHT(TRIM(Table14[[#This Row],[Description]]),4),Lookup!$B$2:$B$5,0),2),\"\")","v":"FWC"},"AGG","Outlook","221226 - FWC ER Mastercard EOY-2022","-",{"$f":"TEXT(Table14[[#This Row],[Date]],\"YYMMDD\")&\" - Intl Transaction Fee - \"&LEFT(RIGHT(Table14[[#This Row],[Description]],LEN(Table14[[#This Row],[Description]])-LEN(\"international transaction fee xx/xx \")),SEARCH(\"DEBIT\",RIGHT(Table14[[#This Row],[Description]],LEN(Table14[[#This Row],[Description]])-LEN(\"international transaction fee xx/xx xx\"))))&\".pdf\"","v":"220103 - Intl Transaction Fee - OWL FOR THUNDERBI WIESBADEN.pdf"}]
["2022-01-19","MAILCHIMP *MISC 01/18 PURCHASE MAILCHIMP.COM GA DEBIT CARD *7411",-9.49,{"$f":"D5+Table14[[#This Row],[Amount]]","v":612.54999999999995},{"$f":"IFERROR(INDEX(Lookup!$B$2:$C$5,MATCH(RIGHT(TRIM(Table14[[#This Row],[Description]]),4),Lookup!$B$2:$B$5,0),2),\"\")","v":"LRC"},"AGG","Mailchimp","220310 - LRC ADS_BG ER MasterCard 04-2022","-","220118 - AGG - Mailchimp Essentials MC14760854.pdf"]
["2022-01-20","MailChimp 01/20 PURCHASE Atlanta GA DEBIT CARD *7411",-47.69,{"$f":"D6+Table14[[#This Row],[Amount]]","v":564.8599999999999},{"$f":"IFERROR(INDEX(Lookup!$B$2:$C$5,MATCH(RIGHT(TRIM(Table14[[#This Row],[Description]]),4),Lookup!$B$2:$B$5,0),2),\"\")","v":"LRC"},"Peregrine","Mailchimp","220310 - LRC ADS_BG ER MasterCard Peregrine Billable 03-2022","005-22","220120 - Peregrine - Mailchimp Essentials MC14777938.pdf"]
["2022-01-24","PEREGRINE AVIONI DES:QUICKBOOKS ID:375020979 INDN:AVIAGLOBAL GROUP, LLC CO ID:1722616653 PPD",1500,{"$f":"D7+Table14[[#This Row],[Amount]]","v":2064.8599999999997},{"$f":"IFERROR(INDEX(Lookup!$B$2:$C$5,MATCH(RIGHT(TRIM(Table14[[#This Row],[Description]]),4),Lookup!$B$2:$B$5,0),2),\"\")","v":""},"Peregrine"]
["2022-01-24","SOFTACULOUS 01/24 PURCHASE ABU DHABI DEBIT CARD *7429",-24,{"$f":"D8+Table14[[#This Row],[Amount]]","v":2040.8599999999997},{"$f":"IFERROR(INDEX(Lookup!$B$2:$C$5,MATCH(RIGHT(TRIM(Table14[[#This Row],[Description]]),4),Lookup!$B$2:$B$5,0),2),\"\")","v":"FWC"},"Peregrine","Security","221221 - FWC ER Peregrine Billable 1Q22","020-22","220124 - Softaculous Loginizer 783150.pdf"]
["2022-01-24","ELEMENTOR 01/24 PURCHASE WILMINGTON DE DEBIT CARD *7429",-49,{"$f":"D9+Table14[[#This Row],[Amount]]","v":1991.8599999999997},{"$f":"IFERROR(INDEX(Lookup!$B$2:$C$5,MATCH(RIGHT(TRIM(Table14[[#This Row],[Description]]),4),Lookup!$B$2:$B$5,0),2),\"\")","v":"FWC"},"Peregrine","CMS Editor","221221 - FWC ER Peregrine Billable 1Q22","020-22","220124 - Elementor Pro.pdf"]
["2022-01-24","INTERNATIONAL TRANSACTION FEE 01/24 SOFTACULOUS ABU DHABI DEBIT CARD *7429",-0.72,{"$f":"D10+Table14[[#This Row],[Amount]]","v":1991.1399999999996},{"$f":"IFERROR(INDEX(Lookup!$B$2:$C$5,MATCH(RIGHT(TRIM(Table14[[#This Row],[Description]]),4),Lookup!$B$2:$B$5,0),2),\"\")","v":"FWC"},"Peregrine","Fee","221221 - FWC ER Peregrine Billable 1Q22","020-22",{"$f":"TEXT(Table14[[#This Row],[Date]],\"YYMMDD\")&\" - Intl Transaction Fee - \"&LEFT(RIGHT(Table14[[#This Row],[Description]],LEN(Table14[[#This Row],[Description]])-LEN(\"international transaction fee xx/xx \")),SEARCH(\"DEBIT\",RIGHT(Table14[[#This Row],[Description]],LEN(Table14[[#This Row],[Description]])-LEN(\"international transaction fee xx/xx xx\"))))&\".pdf\"","v":"220124 - Intl Transaction Fee - SOFTACULOUS ABU DHABI.pdf"}]
["2022-01-25","REALLY-SIMPLE-SSL 01/24 PURCHASE GRONINGEN DEBIT CARD *7429",-23.2,{"$f":"D11+Table14[[#This Row],[Amount]]","v":1967.9399999999996},{"$f":"IFERROR(INDEX(Lookup!$B$2:$C$5,MATCH(RIGHT(TRIM(Table14[[#This Row],[Description]]),4),Lookup!$B$2:$B$5,0),2),\"\")","v":"FWC"},"Peregrine","SSL Cert Manager","221221 - FWC ER Peregrine Billable 1Q22","020-22","220124 - Really Simple SSL 2022-1993.pdf"]
["2022-01-25","COMPLIANZ-GDPR-PR 01/25 PURCHASE GRONINGEN DEBIT CARD *7429",-45,{"$f":"D12+Table14[[#This Row],[Amount]]","v":1922.9399999999996},{"$f":"IFERROR(INDEX(Lookup!$B$2:$C$5,MATCH(RIGHT(TRIM(Table14[[#This Row],[Description]]),4),Lookup!$B$2:$B$5,0),2),\"\")","v":"FWC"},"Peregrine","Privacy Compliance","221221 - FWC ER Peregrine Billable 1Q22","020-22","220125 - Complianz 2022-0745.pdf"]
["2022-01-25","INTERNATIONAL TRANSACTION FEE 01/25 COMPLIANZ-GDPR-PR GRONINGEN DEBIT CARD *7429",-1.35,{"$f":"D13+Table14[[#This Row],[Amount]]","v":1921.5899999999997},{"$f":"IFERROR(INDEX(Lookup!$B$2:$C$5,MATCH(RIGHT(TRIM(Table14[[#This Row],[Description]]),4),Lookup!$B$2:$B$5,0),2),\"\")","v":"FWC"},"Peregrine","Fee","221221 - FWC ER Peregrine Billable 1Q22","020-22",{"$f":"TEXT(Table14[[#This Row],[Date]],\"YYMMDD\")&\" - Intl Transaction Fee - \"&LEFT(RIGHT(Table14[[#This Row],[Description]],LEN(Table14[[#This Row],[Description]])-LEN(\"international transaction fee xx/xx \")),SEARCH(\"DEBIT\",RIGHT(Table14[[#This Row],[Description]],LEN(Table14[[#This Row],[Description]])-LEN(\"international transaction fee xx/xx xx\"))))&\".pdf\"","v":"220125 - Intl Transaction Fee - COMPLIANZ-GDPR-PR GRONINGEN.pdf"}]
["2022-01-25","INTERNATIONAL TRANSACTION FEE 01/24 REALLY-SIMPLE-SSL GRONINGEN DEBIT CARD *7429",-0.7,{"$f":"D14+Table14[[#This Row],[Amount]]","v":1920.8899999999996},{"$f":"IFERROR(INDEX(Lookup!$B$2:$C$5,MATCH(RIGHT(TRIM(Table14[[#This Row],[Description]]),4),Lookup!$B$2:$B$5,0),2),\"\")","v":"FWC"},"Peregrine","Fee","221221 - FWC ER Peregrine Billable 1Q22","020-22",{"$f":"TEXT(Table14[[#This Row],[Date]],\"YYMMDD\")&\" - Intl Transaction Fee - \"&LEFT(RIGHT(Table14[[#This Row],[Description]],LEN(Table14[[#This Row],[Description]])-LEN(\"international transaction fee xx/xx \")),SEARCH(\"DEBIT\",RIGHT(Table14[[#This Row],[Description]],LEN(Table14[[#This Row],[Description]])-LEN(\"international transaction fee xx/xx xx\"))))&\".pdf\"","v":"220125 - Intl Transaction Fee - REALLY-SIMPLE-SSL GRONINGEN.pdf"}]
["2022-01-26","BLS*Single Card 01/25 PURCHASE 972547584908 DEBIT CARD *7411",-6.99,{"$f":"D15+Table14[[#This Row],[Amount]]","v":1913.8999999999996},{"$f":"IFERROR(INDEX(Lookup!$B$2:$C$5,MATCH(RIGHT(TRIM(Table14[[#This Row],[Description]]),4),Lookup!$B$2:$B$5,0),2),\"\")","v":"LRC"},"AGG",null,"220310 - LRC ADS_BG ER MasterCard 04-2022","-","220125 - Clear Coast Greetings Island 341592115.pdf"]
["2022-01-26","INTERNATIONAL TRANSACTION FEE 01/25 BLS*Single Card 972547584908 DEBIT CARD *7411",-0.21,{"$f":"D16+Table14[[#This Row],[Amount]]","v":1913.6899999999996},{"$f":"IFERROR(INDEX(Lookup!$B$2:$C$5,MATCH(RIGHT(TRIM(Table14[[#This Row],[Description]]),4),Lookup!$B$2:$B$5,0),2),\"\")","v":"LRC"},"AGG",null,"220310 - LRC ADS_BG ER MasterCard 04-2022","-","220125 - Clear Coast Greetings Island 341592115.pdf"]
["2022-02-01","Monthly Fee Business Adv Relationship",-29.95,{"$f":"D17+Table14[[#This Row],[Amount]]","v":1883.7399999999996},{"$f":"IFERROR(INDEX(Lookup!$B$2:$C$5,MATCH(RIGHT(TRIM(Table14[[#This Row],[Description]]),4),Lookup!$B$2:$B$5,0),2),\"\")","v":""},"AGG",null,null,"-"]
["2022-02-07","INMOTIONHOSTING.C 02/06 PURCHASE 888-3214678 CA DEBIT CARD *7429",-37.18,{"$f":"D18+Table14[[#This Row],[Amount]]","v":1846.5599999999995},{"$f":"IFERROR(INDEX(Lookup!$B$2:$C$5,MATCH(RIGHT(TRIM(Table14[[#This Row],[Description]]),4),Lookup!$B$2:$B$5,0),2),\"\")","v":"FWC"},"AGG","Domain","221226 - FWC ER Mastercard EOY-2022","-","220220 - InMotion Hosting - IMH-314-144898-87.pdf"]
["2022-02-14","JET NET 02/10 PURCHASE 315-797-4420 NY DEBIT CARD *7411",-850,{"$f":"D19+Table14[[#This Row],[Amount]]","v":996.55999999999949},{"$f":"IFERROR(INDEX(Lookup!$B$2:$C$5,MATCH(RIGHT(TRIM(Table14[[#This Row],[Description]]),4),Lookup!$B$2:$B$5,0),2),\"\")","v":"LRC"},"Peregrine",null,"220211 ‐ LRC ADS_BG ER MasterCard Peregrine Billable 02a‐2022","003-22","Executed Custom Special Report Project Agreement AviaGlobal Group LLC[84].pdf"]
["2022-02-18","PEREGRINE AVIONI DES:QUICKBOOKS ID:375020979 INDN:AVIAGLOBAL GROUP, LLC CO ID:1722616653 PPD",1500,{"$f":"D20+Table14[[#This Row],[Amount]]","v":2496.5599999999995},{"$f":"IFERROR(INDEX(Lookup!$B$2:$C$5,MATCH(RIGHT(TRIM(Table14[[#This Row],[Description]]),4),Lookup!$B$2:$B$5,0),2),\"\")","v":""},"Peregrine"]
["2022-02-22","MailChimp 02/20 PURCHASE Atlanta GA DEBIT CARD *7411",-59,{"$f":"D21+Table14[[#This Row],[Amount]]","v":2437.5599999999995},{"$f":"IFERROR(INDEX(Lookup!$B$2:$C$5,MATCH(RIGHT(TRIM(Table14[[#This Row],[Description]]),4),Lookup!$B$2:$B$5,0),2),\"\")","v":"LRC"},"Peregrine","Mailchimp","220310 - LRC ADS_BG ER MasterCard Peregrine Billable 03-2022","005-22","220220 - Peregrine - Mailchimp Essentials MC15026518.pdf"]
["2022-02-22","MAILCHIMP *MISC 02/18 PURCHASE MAILCHIMP.COM GA DEBIT CARD *7411",-11.62,{"$f":"D22+Table14[[#This Row],[Amount]]","v":2425.9399999999996},{"$f":"IFERROR(INDEX(Lookup!$B$2:$C$5,MATCH(RIGHT(TRIM(Table14[[#This Row],[Description]]),4),Lookup!$B$2:$B$5,0),2),\"\")","v":"LRC"},"AGG","Mailchimp","220310 - LRC ADS_BG ER MasterCard 04-2022","-","220218 - AGG - Mailchimp Essentials MC15010226.pdf"]
["2022-03-01","Monthly Fee Business Adv Relationship",-29.95,{"$f":"D23+Table14[[#This Row],[Amount]]","v":2395.9899999999998},{"$f":"IFERROR(INDEX(Lookup!$B$2:$C$5,MATCH(RIGHT(TRIM(Table14[[#This Row],[Description]]),4),Lookup!$B$2:$B$5,0),2),\"\")","v":""},"AGG",null,null,"-"]
["2022-03-15","Amazon.com*1N91P5 03/14 PURCHASE Amzn.com/bill WA DEBIT CARD *7411",-66.66,{"$f":"D24+Table14[[#This Row],[Amount]]","v":2329.33},{"$f":"IFERROR(INDEX(Lookup!$B$2:$C$5,MATCH(RIGHT(TRIM(Table14[[#This Row],[Description]]),4),Lookup!$B$2:$B$5,0),2),\"\")","v":"LRC"},"Peregrine",null,"220310 - LRC ADS_BG ER MasterCard Peregrine Billable 03-2022","006-22","Amazon.com - Order 111-7793024-7025007.pdf"]
["2022-03-15","STAMPS.COM 03/14 PURCHASE 855-608-2677 CA DEBIT CARD *7411",-30.12,{"$f":"D25+Table14[[#This Row],[Amount]]","v":2299.21},{"$f":"IFERROR(INDEX(Lookup!$B$2:$C$5,MATCH(RIGHT(TRIM(Table14[[#This Row],[Description]]),4),Lookup!$B$2:$B$5,0),2),\"\")","v":"LRC"},"Peregrine","Stamps","220310 - LRC ADS_BG ER MasterCard Peregrine Billable 03-2022","006-22","Stamps dot com st2385760.pdf"]
["2022-03-15","STAMPS.COM 03/14 PURCHASE 855-608-2677 CA DEBIT CARD *7411",-19.190000000000001,{"$f":"D26+Table14[[#This Row],[Amount]]","v":2280.02},{"$f":"IFERROR(INDEX(Lookup!$B$2:$C$5,MATCH(RIGHT(TRIM(Table14[[#This Row],[Description]]),4),Lookup!$B$2:$B$5,0),2),\"\")","v":"LRC"},"AGG","Stamps","220322 ‐ LRC ADS_BG ER MasterCard 07‐2022","-","Stamps dot com st2385037.pdf"]
["2022-03-15","TRANSFER AVIAGLOBAL GROUP, LL:ADS-B Global LLC Confirmation# 1737069000",-74.099999999999994,{"$f":"D27+Table14[[#This Row],[Amount]]","v":2205.92},{"$f":"IFERROR(INDEX(Lookup!$B$2:$C$5,MATCH(RIGHT(TRIM(Table14[[#This Row],[Description]]),4),Lookup!$B$2:$B$5,0),2),\"\")","v":""}]
["2022-03-16","MONSTERINSIGHTS W 03/16 PURCHASE PALM BEACH GA FL DEBIT CARD *7429",-199,{"$f":"D28+Table14[[#This Row],[Amount]]","v":2006.92},{"$f":"IFERROR(INDEX(Lookup!$B$2:$C$5,MATCH(RIGHT(TRIM(Table14[[#This Row],[Description]]),4),Lookup!$B$2:$B$5,0),2),\"\")","v":"FWC"},"Peregrine","Web Traffic","221221 - FWC ER Peregrine Billable 1Q22","020-22","220316 - Monster Insights Invoice 543619.pdf"]
["2022-03-16","SEMPER PLUGINS AI 03/16 PURCHASE PALM BEACH GA FL DEBIT CARD *7429",-99,{"$f":"D29+Table14[[#This Row],[Amount]]","v":1907.92},{"$f":"IFERROR(INDEX(Lookup!$B$2:$C$5,MATCH(RIGHT(TRIM(Table14[[#This Row],[Description]]),4),Lookup!$B$2:$B$5,0),2),\"\")","v":"FWC"},"Peregrine","SEO Plugin","221221 - FWC ER Peregrine Billable 1Q22","020-22","220315 - aioseo Invoice 80192.pdf"]
["2022-03-16","External transfer fee - 3 Day - 03/15/2022 Confirmation: 379444042",-1,{"$f":"D30+Table14[[#This Row],[Amount]]","v":1906.92},"FWC","AGG",null,"221226 - FWC ER Mastercard EOY-2022","-"]
["2022-03-17","PEREGRINE AVIONI DES:QUICKBOOKS ID:375020979 INDN:AVIAGLOBAL GROUP, LLC CO ID:1722616653 PPD",3850,{"$f":"D31+Table14[[#This Row],[Amount]]","v":5756.92},{"$f":"IFERROR(INDEX(Lookup!$B$2:$C$5,MATCH(RIGHT(TRIM(Table14[[#This Row],[Description]]),4),Lookup!$B$2:$B$5,0),2),\"\")","v":""},"Peregrine"]
["2022-03-18","USPS STAMPS ENDIC 03/17 PURCHASE 888-434-0055 DC DEBIT CARD *7411",-100,{"$f":"D32+Table14[[#This Row],[Amount]]","v":5656.92},{"$f":"IFERROR(INDEX(Lookup!$B$2:$C$5,MATCH(RIGHT(TRIM(Table14[[#This Row],[Description]]),4),Lookup!$B$2:$B$5,0),2),\"\")","v":"LRC"},"Peregrine","Stamps","220310 - LRC ADS_BG ER MasterCard Peregrine Billable 03-2022","006-22","Stamps dot com Postage orders.pdf"]
["2022-03-18","USPS STAMPS ENDIC 03/17 PURCHASE 888-434-0055 DC DEBIT CARD *7411",-50,{"$f":"D33+Table14[[#This Row],[Amount]]","v":5606.92},{"$f":"IFERROR(INDEX(Lookup!$B$2:$C$5,MATCH(RIGHT(TRIM(Table14[[#This Row],[Description]]),4),Lookup!$B$2:$B$5,0),2),\"\")","v":"LRC"},"Peregrine","Stamps","220310 - LRC ADS_BG ER MasterCard Peregrine Billable 03-2022","006-22","Stamps dot com Postage orders.pdf"]
["2022-03-18","AMZN Mktp US*1N5B 03/17 PURCHASE Amzn.com/bill WA DEBIT CARD *7411",-29.63,{"$f":"D34+Table14[[#This Row],[Amount]]","v":5577.29},{"$f":"IFERROR(INDEX(Lookup!$B$2:$C$5,MATCH(RIGHT(TRIM(Table14[[#This Row],[Description]]),4),Lookup!$B$2:$B$5,0),2),\"\")","v":"LRC"},"Peregrine",null,"220310 - LRC ADS_BG ER MasterCard Peregrine Billable 03-2022","006-22","Amazon.com - Order 114-5434031-3824202.pdf"]
["2022-03-21","MailChimp 03/20 PURCHASE Atlanta GA DEBIT CARD *7411",-59,{"$f":"D35+Table14[[#This Row],[Amount]]","v":5518.29},{"$f":"IFERROR(INDEX(Lookup!$B$2:$C$5,MATCH(RIGHT(TRIM(Table14[[#This Row],[Description]]),4),Lookup!$B$2:$B$5,0),2),\"\")","v":"LRC"},"Peregrine","Mailchimp","220310 - LRC ADS_BG ER MasterCard Peregrine Billable 03-2022","006-22","220320 - Peregrine - Mailchimp Essentials MC15268026.pdf"]
["2022-03-21","MAILCHIMP *MISC 03/18 PURCHASE MAILCHIMP.COM GA DEBIT CARD *7411",-11.62,{"$f":"D36+Table14[[#This Row],[Amount]]","v":5506.67},{"$f":"IFERROR(INDEX(Lookup!$B$2:$C$5,MATCH(RIGHT(TRIM(Table14[[#This Row],[Description]]),4),Lookup!$B$2:$B$5,0),2),\"\")","v":"LRC"},"AGG","Mailchimp","220322 ‐ LRC ADS_BG ER MasterCard 07‐2022","-","220318 - AGG - Mailchimp Essentials MC15252178.pdf"]
["2022-03-23","TRANSFER AVIAGLOBAL GROUP, LL:ADS-B Global LLC Confirmation# 0107351744",-96.55,{"$f":"D37+Table14[[#This Row],[Amount]]","v":5410.12},{"$f":"IFERROR(INDEX(Lookup!$B$2:$C$5,MATCH(RIGHT(TRIM(Table14[[#This Row],[Description]]),4),Lookup!$B$2:$B$5,0),2),\"\")","v":""}]
["2022-03-24","USPS STAMPS ENDIC 03/23 PURCHASE 888-434-0055 DC DEBIT CARD *7411",-25,{"$f":"D38+Table14[[#This Row],[Amount]]","v":5385.12},{"$f":"IFERROR(INDEX(Lookup!$B$2:$C$5,MATCH(RIGHT(TRIM(Table14[[#This Row],[Description]]),4),Lookup!$B$2:$B$5,0),2),\"\")","v":"LRC"},"Peregrine","Stamps","220310 - LRC ADS_BG ER MasterCard Peregrine Billable 03-2022","006-22","Stamps dot com Postage orders.pdf"]
["2022-03-24","External transfer fee - 3 Day - 03/23/2022 Confirmation: 380466874",-1,{"$f":"D39+Table14[[#This Row],[Amount]]","v":5384.12},{"$f":"IFERROR(INDEX(Lookup!$B$2:$C$5,MATCH(RIGHT(TRIM(Table14[[#This Row],[Description]]),4),Lookup!$B$2:$B$5,0),2),\"\")","v":""},"AGG",null,null,"-"]
["2022-03-29","MICHAEL L STUCK C 03/28 PURCHASE SCOTTSDALE AZ DEBIT CARD *0975",-575,{"$f":"D40+Table14[[#This Row],[Amount]]","v":4809.12},{"$f":"IFERROR(INDEX(Lookup!$B$2:$C$5,MATCH(RIGHT(TRIM(Table14[[#This Row],[Description]]),4),Lookup!$B$2:$B$5,0),2),\"\")","v":"HEA"},"AGG",null,null,null,"HEA AGG ER 01-2022 DebitCardRecon"]
["2022-03-31","NATIONAL BUS AVIA 03/31 PURCHASE WASHINGTON DC DEBIT CARD *7411",-750,{"$f":"D41+Table14[[#This Row],[Amount]]","v":4059.12},{"$f":"IFERROR(INDEX(Lookup!$B$2:$C$5,MATCH(RIGHT(TRIM(Table14[[#This Row],[Description]]),4),Lookup!$B$2:$B$5,0),2),\"\")","v":"LRC"},"AGG",null,"221227 - LRC ADS_BG ER MasterCard 18-2022","-","220331 - NBAA Dues 000419790.pdf"]
["2022-04-01","Monthly Fee Business Adv Relationship",-29.95,{"$f":"D42+Table14[[#This Row],[Amount]]","v":4029.17},{"$f":"IFERROR(INDEX(Lookup!$B$2:$C$5,MATCH(RIGHT(TRIM(Table14[[#This Row],[Description]]),4),Lookup!$B$2:$B$5,0),2),\"\")","v":""},"AGG",null,null,"-"]
["2022-04-08","EVERMAP COMPANY L 04/05 PURCHASE CORVALLIS OR DEBIT CARD *0975",-149,{"$f":"D43+Table14[[#This Row],[Amount]]","v":3880.17},{"$f":"IFERROR(INDEX(Lookup!$B$2:$C$5,MATCH(RIGHT(TRIM(Table14[[#This Row],[Description]]),4),Lookup!$B$2:$B$5,0),2),\"\")","v":"HEA"},"AGG",null,null,null,"HEA AGG ER 01-2022 DebitCardRecon"]
["2022-04-13","EVERMAP COMPANY L 04/05 PURCHASE CORVALLIS OR DEBIT CARD *7411",-149,{"$f":"D44+Table14[[#This Row],[Amount]]","v":3731.17},{"$f":"IFERROR(INDEX(Lookup!$B$2:$C$5,MATCH(RIGHT(TRIM(Table14[[#This Row],[Description]]),4),Lookup!$B$2:$B$5,0),2),\"\")","v":"LRC"},"AGG",null,"221227 - LRC ADS_BG ER MasterCard 18-2022","-","220405 - Evermap PDF Tool W-48699.pdf"]
["2022-04-14","STAMPS.COM 04/14 PURCHASE 855-608-2677 CA DEBIT CARD *7411",-17.989999999999998,{"$f":"D45+Table14[[#This Row],[Amount]]","v":3713.1800000000003},{"$f":"IFERROR(INDEX(Lookup!$B$2:$C$5,MATCH(RIGHT(TRIM(Table14[[#This Row],[Description]]),4),Lookup!$B$2:$B$5,0),2),\"\")","v":"LRC"},"AGG","Stamps","220624 - LRC ADS_BG ER Mastercard 10-2022","-","220416 - Stamps dot com.pdf"]
["2022-04-19","MAILCHIMP *MISC 04/18 PURCHASE MAILCHIMP.COM GA DEBIT CARD *7411",-11.62,{"$f":"D46+Table14[[#This Row],[Amount]]","v":3701.5600000000004},{"$f":"IFERROR(INDEX(Lookup!$B$2:$C$5,MATCH(RIGHT(TRIM(Table14[[#This Row],[Description]]),4),Lookup!$B$2:$B$5,0),2),\"\")","v":"LRC"},"AGG","Mailchimp","220624 - LRC ADS_BG ER Mastercard 10-2022","-","220418 - AGG - Mailchimp Essentials MC15490450.pdf"]
["2022-04-20","PEREGRINE AVIONI DES:QUICKBOOKS ID:375020979 INDN:AVIAGLOBAL GROUP, LLC CO ID:1722616653 PPD",3557.1,{"$f":"D47+Table14[[#This Row],[Amount]]","v":7258.66},{"$f":"IFERROR(INDEX(Lookup!$B$2:$C$5,MATCH(RIGHT(TRIM(Table14[[#This Row],[Description]]),4),Lookup!$B$2:$B$5,0),2),\"\")","v":""},"Peregrine"]
["2022-04-20","MailChimp 04/20 PURCHASE Atlanta GA DEBIT CARD *7411",-59,{"$f":"D48+Table14[[#This Row],[Amount]]","v":7199.66},{"$f":"IFERROR(INDEX(Lookup!$B$2:$C$5,MATCH(RIGHT(TRIM(Table14[[#This Row],[Description]]),4),Lookup!$B$2:$B$5,0),2),\"\")","v":"LRC"},"Peregrine","Mailchimp","220624 - LRC ADS_BG ER Peregrine Billable 09-2022","011-22","220420 - Peregrine - Mailchimp Essentials MC15506606.pdf"]
["2022-04-22","TRANSFER AVIAGLOBAL GROUP, LL:ADS-B Global LLC Confirmation# 1763915441",-2000,{"$f":"D49+Table14[[#This Row],[Amount]]","v":5199.66},{"$f":"IFERROR(INDEX(Lookup!$B$2:$C$5,MATCH(RIGHT(TRIM(Table14[[#This Row],[Description]]),4),Lookup!$B$2:$B$5,0),2),\"\")","v":""}]
["2022-04-22","TRANSFER AVIAGLOBAL GROUP, LL:Forrest Colliver Confirmation# 0663925416",-2000,{"$f":"D50+Table14[[#This Row],[Amount]]","v":3199.66},{"$f":"IFERROR(INDEX(Lookup!$B$2:$C$5,MATCH(RIGHT(TRIM(Table14[[#This Row],[Description]]),4),Lookup!$B$2:$B$5,0),2),\"\")","v":""}]
["2022-04-22","Online Banking Transfer Conf# iuvu5ty24; AERO BUSINESS DEVELOPEMENT LLC",-2000,{"$f":"D51+Table14[[#This Row],[Amount]]","v":1199.6599999999999},{"$f":"IFERROR(INDEX(Lookup!$B$2:$C$5,MATCH(RIGHT(TRIM(Table14[[#This Row],[Description]]),4),Lookup!$B$2:$B$5,0),2),\"\")","v":""}]
["2022-04-25","External transfer fee - 3 Day - 04/22/2022 Confirmation: 384618918",-1,{"$f":"D52+Table14[[#This Row],[Amount]]","v":1198.6599999999999},{"$f":"IFERROR(INDEX(Lookup!$B$2:$C$5,MATCH(RIGHT(TRIM(Table14[[#This Row],[Description]]),4),Lookup!$B$2:$B$5,0),2),\"\")","v":""},"AGG",null,null,"-"]
["2022-04-25","External transfer fee - 3 Day - 04/22/2022 Confirmation: 384619226",-1,{"$f":"D53+Table14[[#This Row],[Amount]]","v":1197.6599999999999},{"$f":"IFERROR(INDEX(Lookup!$B$2:$C$5,MATCH(RIGHT(TRIM(Table14[[#This Row],[Description]]),4),Lookup!$B$2:$B$5,0),2),\"\")","v":""},"AGG",null,null,"-"]
["2022-05-02","Monthly Fee Business Adv Relationship",-29.95,{"$f":"D54+Table14[[#This Row],[Amount]]","v":1167.7099999999998},{"$f":"IFERROR(INDEX(Lookup!$B$2:$C$5,MATCH(RIGHT(TRIM(Table14[[#This Row],[Description]]),4),Lookup!$B$2:$B$5,0),2),\"\")","v":""},"AGG",null,null,"-"]
["2022-05-16","STAMPS.COM 05/14 PURCHASE 855-608-2677 CA DEBIT CARD *7411",-17.989999999999998,{"$f":"D55+Table14[[#This Row],[Amount]]","v":1149.7199999999998},{"$f":"IFERROR(INDEX(Lookup!$B$2:$C$5,MATCH(RIGHT(TRIM(Table14[[#This Row],[Description]]),4),Lookup!$B$2:$B$5,0),2),\"\")","v":"LRC"},"AGG","Stamps","220624 - LRC ADS_BG ER Mastercard 10-2022","-","220516 - Stamps dot com.pdf"]
["2022-05-19","MAILCHIMP *MISC 05/18 PURCHASE MAILCHIMP.COM GA DEBIT CARD *7411",-11.62,{"$f":"D56+Table14[[#This Row],[Amount]]","v":1138.0999999999999},{"$f":"IFERROR(INDEX(Lookup!$B$2:$C$5,MATCH(RIGHT(TRIM(Table14[[#This Row],[Description]]),4),Lookup!$B$2:$B$5,0),2),\"\")","v":"LRC"},"AGG","Mailchimp","220624 - LRC ADS_BG ER Mastercard 10-2022","-","220518 - AGG - Mailchimp Essentials MC15724938.pdf"]
["2022-05-20","MailChimp 05/20 PURCHASE Atlanta GA DEBIT CARD *7411",-59,{"$f":"D57+Table14[[#This Row],[Amount]]","v":1079.0999999999999},{"$f":"IFERROR(INDEX(Lookup!$B$2:$C$5,MATCH(RIGHT(TRIM(Table14[[#This Row],[Description]]),4),Lookup!$B$2:$B$5,0),2),\"\")","v":"LRC"},"Peregrine","Mailchimp","220624 - LRC ADS_BG ER Peregrine Billable 09-2022","011-22","220520 - Peregrine - Mailchimp Essentials MC15741014.pdf"]
["2022-06-01","Monthly Fee Business Adv Relationship",-29.95,{"$f":"D58+Table14[[#This Row],[Amount]]","v":1049.1499999999999},{"$f":"IFERROR(INDEX(Lookup!$B$2:$C$5,MATCH(RIGHT(TRIM(Table14[[#This Row],[Description]]),4),Lookup!$B$2:$B$5,0),2),\"\")","v":""},"AGG",null,null,"-"]
["2022-06-06","DMARCIAN* DMARCIA 06/04 PURCHASE BREVARD NC DEBIT CARD *7429",-239.88,{"$f":"D59+Table14[[#This Row],[Amount]]","v":809.26999999999987},{"$f":"IFERROR(INDEX(Lookup!$B$2:$C$5,MATCH(RIGHT(TRIM(Table14[[#This Row],[Description]]),4),Lookup!$B$2:$B$5,0),2),\"\")","v":"FWC"},"AGG",null,"221201 - FWC ER Mastercard Dec-2022","-","AGG - DMARCian invoice_50733.pdf"]
["2022-06-08","DREAMSTIME.COM 06/07 PURCHASE BRENTWOOD TN DEBIT CARD *7411",-16.989999999999998,{"$f":"D60+Table14[[#This Row],[Amount]]","v":792.27999999999986},{"$f":"IFERROR(INDEX(Lookup!$B$2:$C$5,MATCH(RIGHT(TRIM(Table14[[#This Row],[Description]]),4),Lookup!$B$2:$B$5,0),2),\"\")","v":"LRC"},"Peregrine",null,"220624 - LRC ADS_BG ER Peregrine Billable 09-2022","011-22","220607 - Dreamtime LLC 23829472.pdf"]
["2022-06-08","DREAMSTIME.COM 06/07 PURCHASE BRENTWOOD TN DEBIT CARD *7411",-1,{"$f":"D61+Table14[[#This Row],[Amount]]","v":791.27999999999986},{"$f":"IFERROR(INDEX(Lookup!$B$2:$C$5,MATCH(RIGHT(TRIM(Table14[[#This Row],[Description]]),4),Lookup!$B$2:$B$5,0),2),\"\")","v":"LRC"},"Peregrine",null,"220624 - LRC ADS_BG ER Peregrine Billable 09-2022","011-22","220607 - Dreamtime LLC 23829472.pdf"]
["2022-06-14","STAMPS.COM 06/14 PURCHASE 855-608-2677 CA DEBIT CARD *7411",-17.989999999999998,{"$f":"D62+Table14[[#This Row],[Amount]]","v":773.28999999999985},{"$f":"IFERROR(INDEX(Lookup!$B$2:$C$5,MATCH(RIGHT(TRIM(Table14[[#This Row],[Description]]),4),Lookup!$B$2:$B$5,0),2),\"\")","v":"LRC"},"AGG","Stamps","220624 - LRC ADS_BG ER Mastercard 10-2022","-","220616 - Stamps dot com.pdf"]
["2022-06-21","MailChimp 06/20 PURCHASE Atlanta GA DEBIT CARD *7411",-59,{"$f":"D63+Table14[[#This Row],[Amount]]","v":714.28999999999985},{"$f":"IFERROR(INDEX(Lookup!$B$2:$C$5,MATCH(RIGHT(TRIM(Table14[[#This Row],[Description]]),4),Lookup!$B$2:$B$5,0),2),\"\")","v":"LRC"},"Peregrine","Mailchimp","220624 - LRC ADS_BG ER Peregrine Billable 09-2022","011-22","220620 - Peregrine - Mailchimp Essentials MC15971334.pdf"]
["2022-06-21","MAILCHIMP *MISC 06/18 PURCHASE MAILCHIMP.COM GA DEBIT CARD *7411",-11.62,{"$f":"D64+Table14[[#This Row],[Amount]]","v":702.66999999999985},{"$f":"IFERROR(INDEX(Lookup!$B$2:$C$5,MATCH(RIGHT(TRIM(Table14[[#This Row],[Description]]),4),Lookup!$B$2:$B$5,0),2),\"\")","v":"LRC"},"AGG","Mailchimp","220624 - LRC ADS_BG ER Mastercard 10-2022","-","220618 - AGG - Mailchimp Essentials MC15956138.pdf"]
["2022-06-21","ELEMENTOR 06/20 PURCHASE WILMINGTON DE DEBIT CARD *7429",-49,{"$f":"D65+Table14[[#This Row],[Amount]]","v":653.66999999999985},{"$f":"IFERROR(INDEX(Lookup!$B$2:$C$5,MATCH(RIGHT(TRIM(Table14[[#This Row],[Description]]),4),Lookup!$B$2:$B$5,0),2),\"\")","v":"FWC"},"AGG",null,"221201 - FWC ER Mastercard Dec-2022","-","220124 - Elementor Receipt 11416195.pdf"]
["2022-06-21","REALLY-SIMPLE-SSL 06/20 PURCHASE GRONINGEN DEBIT CARD *7429",-23.2,{"$f":"D66+Table14[[#This Row],[Amount]]","v":630.4699999999998},{"$f":"IFERROR(INDEX(Lookup!$B$2:$C$5,MATCH(RIGHT(TRIM(Table14[[#This Row],[Description]]),4),Lookup!$B$2:$B$5,0),2),\"\")","v":"FWC"},"AGG",null,"221201 - FWC ER Mastercard Dec-2022","-","AGG - ReallySimple SSL Receipt 2022-13884.pdf"]
["2022-06-21","COMPLIANZ-GDPR-PR 06/20 PURCHASE GRONINGEN DEBIT CARD *7429",-45,{"$f":"D67+Table14[[#This Row],[Amount]]","v":585.4699999999998},{"$f":"IFERROR(INDEX(Lookup!$B$2:$C$5,MATCH(RIGHT(TRIM(Table14[[#This Row],[Description]]),4),Lookup!$B$2:$B$5,0),2),\"\")","v":"FWC"},"AGG",null,"221201 - FWC ER Mastercard Dec-2022","-","220125 - Complianz Invoice 2022-0745.pdf"]
["2022-06-21","INTERNATIONAL TRANSACTION FEE 06/20 COMPLIANZ-GDPR-PR GRONINGEN DEBIT CARD *7429",-1.35,{"$f":"D68+Table14[[#This Row],[Amount]]","v":584.11999999999978},{"$f":"IFERROR(INDEX(Lookup!$B$2:$C$5,MATCH(RIGHT(TRIM(Table14[[#This Row],[Description]]),4),Lookup!$B$2:$B$5,0),2),\"\")","v":"FWC"},"AGG",null,"221201 - FWC ER Mastercard Dec-2022","-",{"$f":"TEXT(Table14[[#This Row],[Date]],\"YYMMDD\")&\" - Intl Transaction Fee - \"&LEFT(RIGHT(Table14[[#This Row],[Description]],LEN(Table14[[#This Row],[Description]])-LEN(\"international transaction fee xx/xx \")),SEARCH(\"DEBIT\",RIGHT(Table14[[#This Row],[Description]],LEN(Table14[[#This Row],[Description]])-LEN(\"international transaction fee xx/xx xx\"))))&\".pdf\"","v":"220621 - Intl Transaction Fee - COMPLIANZ-GDPR-PR GRONINGEN.pdf"}]
["2022-06-21","INTERNATIONAL TRANSACTION FEE 06/20 REALLY-SIMPLE-SSL GRONINGEN DEBIT CARD *7429",-0.7,{"$f":"D69+Table14[[#This Row],[Amount]]","v":583.41999999999973},{"$f":"IFERROR(INDEX(Lookup!$B$2:$C$5,MATCH(RIGHT(TRIM(Table14[[#This Row],[Description]]),4),Lookup!$B$2:$B$5,0),2),\"\")","v":"FWC"},"AGG",null,"221201 - FWC ER Mastercard Dec-2022","-",{"$f":"TEXT(Table14[[#This Row],[Date]],\"YYMMDD\")&\" - Intl Transaction Fee - \"&LEFT(RIGHT(Table14[[#This Row],[Description]],LEN(Table14[[#This Row],[Description]])-LEN(\"international transaction fee xx/xx \")),SEARCH(\"DEBIT\",RIGHT(Table14[[#This Row],[Description]],LEN(Table14[[#This Row],[Description]])-LEN(\"international transaction fee xx/xx xx\"))))&\".pdf\"","v":"220621 - Intl Transaction Fee - REALLY-SIMPLE-SSL GRONINGEN.pdf"}]
["2022-07-01","Monthly Fee Business Adv Relationship",-29.95,{"$f":"D70+Table14[[#This Row],[Amount]]","v":553.46999999999969},{"$f":"IFERROR(INDEX(Lookup!$B$2:$C$5,MATCH(RIGHT(TRIM(Table14[[#This Row],[Description]]),4),Lookup!$B$2:$B$5,0),2),\"\")","v":""},"AGG",null,null,"-"]
["2022-07-08","PEREGRINE AVIONI DES:QUICKBOOKS ID:375020979 INDN:AVIAGLOBAL GROUP, LLC CO ID:1722616653 PPD",3000,{"$f":"D71+Table14[[#This Row],[Amount]]","v":3553.47},{"$f":"IFERROR(INDEX(Lookup!$B$2:$C$5,MATCH(RIGHT(TRIM(Table14[[#This Row],[Description]]),4),Lookup!$B$2:$B$5,0),2),\"\")","v":""},"Peregrine"]
["2022-07-14","STAMPS.COM 07/14 PURCHASE 855-608-2677 CA DEBIT CARD *7411",-17.989999999999998,{"$f":"D72+Table14[[#This Row],[Amount]]","v":3535.48},{"$f":"IFERROR(INDEX(Lookup!$B$2:$C$5,MATCH(RIGHT(TRIM(Table14[[#This Row],[Description]]),4),Lookup!$B$2:$B$5,0),2),\"\")","v":"LRC"},"AGG","Stamps","221020 - LRC ADS_BG ER Mastercard 12-2022","-","220714 - Stamps dot com.pdf"]
["2022-07-19","MAILCHIMP *MISC 07/18 PURCHASE MAILCHIMP.COM GA DEBIT CARD *7411",-11.62,{"$f":"D73+Table14[[#This Row],[Amount]]","v":3523.86},{"$f":"IFERROR(INDEX(Lookup!$B$2:$C$5,MATCH(RIGHT(TRIM(Table14[[#This Row],[Description]]),4),Lookup!$B$2:$B$5,0),2),\"\")","v":"LRC"},"AGG","Mailchimp","221020 - LRC ADS_BG ER Mastercard 12-2022","-","220719 - AGG - Mailchimp Essentials MC16182470.pdf"]
["2022-07-20","MailChimp 07/20 PURCHASE Atlanta GA DEBIT CARD *7411",-59,{"$f":"D74+Table14[[#This Row],[Amount]]","v":3464.86},{"$f":"IFERROR(INDEX(Lookup!$B$2:$C$5,MATCH(RIGHT(TRIM(Table14[[#This Row],[Description]]),4),Lookup!$B$2:$B$5,0),2),\"\")","v":"LRC"},"Peregrine","Mailchimp","221020 - LRC ADS_BG ER Peregrine Billable 13-2022","015-22","220720 - Peregrine - Mailchimp Essentials MC16197922.pdf"]
["2022-08-01","SAE INTERNATIONAL 07/30 PURCHASE 7247764841 PA DEBIT CARD *7411",-120,{"$f":"D75+Table14[[#This Row],[Amount]]","v":3344.86},{"$f":"IFERROR(INDEX(Lookup!$B$2:$C$5,MATCH(RIGHT(TRIM(Table14[[#This Row],[Description]]),4),Lookup!$B$2:$B$5,0),2),\"\")","v":"LRC"},"AGG",null,"221020 - LRC ADS_BG ER Mastercard 12-2022","-","220701 - SAE Auto Renewal.pdf"]
["2022-08-01","Monthly Fee Business Adv Relationship",-29.95,{"$f":"D76+Table14[[#This Row],[Amount]]","v":3314.9100000000003},{"$f":"IFERROR(INDEX(Lookup!$B$2:$C$5,MATCH(RIGHT(TRIM(Table14[[#This Row],[Description]]),4),Lookup!$B$2:$B$5,0),2),\"\")","v":""},"AGG",null,null,"-"]
["2022-08-08","PEREGRINE AVIONI DES:QUICKBOOKS ID:375020979 INDN:AVIAGLOBAL GROUP, LLC CO ID:1722616653 PPD",3000,{"$f":"D77+Table14[[#This Row],[Amount]]","v":6314.91},{"$f":"IFERROR(INDEX(Lookup!$B$2:$C$5,MATCH(RIGHT(TRIM(Table14[[#This Row],[Description]]),4),Lookup!$B$2:$B$5,0),2),\"\")","v":""},"Peregrine"]
["2022-08-15","STAMPS.COM 08/14 PURCHASE 855-608-2677 CA DEBIT CARD *7411",-17.989999999999998,{"$f":"D78+Table14[[#This Row],[Amount]]","v":6296.92},{"$f":"IFERROR(INDEX(Lookup!$B$2:$C$5,MATCH(RIGHT(TRIM(Table14[[#This Row],[Description]]),4),Lookup!$B$2:$B$5,0),2),\"\")","v":"LRC"},"AGG","Stamps","221020 - LRC ADS_BG ER Mastercard 12-2022","-","220815 - Stamps dot com.pdf"]
["2022-08-19","MAILCHIMP *MISC 08/18 PURCHASE MAILCHIMP.COM GA DEBIT CARD *7411",-11.62,{"$f":"D79+Table14[[#This Row],[Amount]]","v":6285.3},{"$f":"IFERROR(INDEX(Lookup!$B$2:$C$5,MATCH(RIGHT(TRIM(Table14[[#This Row],[Description]]),4),Lookup!$B$2:$B$5,0),2),\"\")","v":"LRC"},"AGG","Mailchimp","221020 - LRC ADS_BG ER Mastercard 12-2022","-","220818 - AGG - Mailchimp Essentials MC16405518.pdf"]
["2022-08-22","MailChimp 08/20 PURCHASE Atlanta GA DEBIT CARD *7411",-59,{"$f":"D80+Table14[[#This Row],[Amount]]","v":6226.3},{"$f":"IFERROR(INDEX(Lookup!$B$2:$C$5,MATCH(RIGHT(TRIM(Table14[[#This Row],[Description]]),4),Lookup!$B$2:$B$5,0),2),\"\")","v":"LRC"},"Peregrine","Mailchimp","221020 - LRC ADS_BG ER Peregrine Billable 13-2022","015-22","220820 - Peregrine - Mailchimp Essentials MC16420842.pdf"]
["2022-08-31","PEREGRINE AVIONI DES:QUICKBOOKS ID:375020979 INDN:AVIAGLOBAL GROUP, LLC CO ID:1722616653 PPD",3194.99,{"$f":"D81+Table14[[#This Row],[Amount]]","v":9421.2900000000009},{"$f":"IFERROR(INDEX(Lookup!$B$2:$C$5,MATCH(RIGHT(TRIM(Table14[[#This Row],[Description]]),4),Lookup!$B$2:$B$5,0),2),\"\")","v":""},"Peregrine"]
["2022-09-01","HELICOPTER ASSOCI 08/31 PURCHASE 7036834646 VA DEBIT CARD *7429",-325,{"$f":"D82+Table14[[#This Row],[Amount]]","v":9096.2900000000009},{"$f":"IFERROR(INDEX(Lookup!$B$2:$C$5,MATCH(RIGHT(TRIM(Table14[[#This Row],[Description]]),4),Lookup!$B$2:$B$5,0),2),\"\")","v":"FWC"},"AGG",null,"221201 - FWC ER Mastercard Dec-2022","-","AGG - HAI Receipt- 145241.pdf"]
["2022-09-01","Monthly Fee Business Adv Relationship",-29.95,{"$f":"D83+Table14[[#This Row],[Amount]]","v":9066.34},{"$f":"IFERROR(INDEX(Lookup!$B$2:$C$5,MATCH(RIGHT(TRIM(Table14[[#This Row],[Description]]),4),Lookup!$B$2:$B$5,0),2),\"\")","v":""},"AGG",null,null,"-"]
["2022-09-07","TRANSFER AVIAGLOBAL GROUP, LL:ADS-B Global LLC Confirmation# 0156760934",-2700,{"$f":"D84+Table14[[#This Row],[Amount]]","v":6366.34},{"$f":"IFERROR(INDEX(Lookup!$B$2:$C$5,MATCH(RIGHT(TRIM(Table14[[#This Row],[Description]]),4),Lookup!$B$2:$B$5,0),2),\"\")","v":""}]
["2022-09-07","TRANSFER AVIAGLOBAL GROUP, LL:Forrest Colliver Confirmation# 1556772007",-2700,{"$f":"D85+Table14[[#This Row],[Amount]]","v":3666.34},{"$f":"IFERROR(INDEX(Lookup!$B$2:$C$5,MATCH(RIGHT(TRIM(Table14[[#This Row],[Description]]),4),Lookup!$B$2:$B$5,0),2),\"\")","v":""}]
["2022-09-07","Online Banking Transfer Conf# itu1b5i02; AERO BUSINESS DEVELOPEMENT LLC",-2700,{"$f":"D86+Table14[[#This Row],[Amount]]","v":966.34000000000015},{"$f":"IFERROR(INDEX(Lookup!$B$2:$C$5,MATCH(RIGHT(TRIM(Table14[[#This Row],[Description]]),4),Lookup!$B$2:$B$5,0),2),\"\")","v":""}]
["2022-09-08","External transfer fee - 3 Day - 09/07/2022 Confirmation: 403675046",-1,{"$f":"D87+Table14[[#This Row],[Amount]]","v":965.34000000000015},{"$f":"IFERROR(INDEX(Lookup!$B$2:$C$5,MATCH(RIGHT(TRIM(Table14[[#This Row],[Description]]),4),Lookup!$B$2:$B$5,0),2),\"\")","v":""},"AGG",null,null,"-"]
["2022-09-08","External transfer fee - 3 Day - 09/07/2022 Confirmation: 403675426",-1,{"$f":"D88+Table14[[#This Row],[Amount]]","v":964.34000000000015},{"$f":"IFERROR(INDEX(Lookup!$B$2:$C$5,MATCH(RIGHT(TRIM(Table14[[#This Row],[Description]]),4),Lookup!$B$2:$B$5,0),2),\"\")","v":""},"AGG",null,null,"-"]
["2022-09-14","PEREGRINE AVIONI DES:QUICKBOOKS ID:375020979 INDN:AVIAGLOBAL GROUP, LLC CO ID:1722616653 PPD",3000,{"$f":"D89+Table14[[#This Row],[Amount]]","v":3964.34},{"$f":"IFERROR(INDEX(Lookup!$B$2:$C$5,MATCH(RIGHT(TRIM(Table14[[#This Row],[Description]]),4),Lookup!$B$2:$B$5,0),2),\"\")","v":""},"Peregrine"]
["2022-09-14","STAMPS.COM 09/14 PURCHASE 855-608-2677 CA DEBIT CARD *7411",-17.989999999999998,{"$f":"D90+Table14[[#This Row],[Amount]]","v":3946.3500000000004},{"$f":"IFERROR(INDEX(Lookup!$B$2:$C$5,MATCH(RIGHT(TRIM(Table14[[#This Row],[Description]]),4),Lookup!$B$2:$B$5,0),2),\"\")","v":"LRC"},"AGG","Stamps","221020 - LRC ADS_BG ER Mastercard 12-2022","-","220914 - Stamps dot com.pdf"]
["2022-09-19","MAILCHIMP *MISC 09/18 PURCHASE MAILCHIMP.COM GA DEBIT CARD *7411",-11.62,{"$f":"D91+Table14[[#This Row],[Amount]]","v":3934.7300000000005},{"$f":"IFERROR(INDEX(Lookup!$B$2:$C$5,MATCH(RIGHT(TRIM(Table14[[#This Row],[Description]]),4),Lookup!$B$2:$B$5,0),2),\"\")","v":"LRC"},"AGG","Mailchimp","221020 - LRC ADS_BG ER Mastercard 12-2022","-","220918 - AGG - Mailchimp Essentials MC16627250.pdf"]
["2022-09-20","MailChimp 09/20 PURCHASE Atlanta GA DEBIT CARD *7411",-59,{"$f":"D92+Table14[[#This Row],[Amount]]","v":3875.7300000000005},{"$f":"IFERROR(INDEX(Lookup!$B$2:$C$5,MATCH(RIGHT(TRIM(Table14[[#This Row],[Description]]),4),Lookup!$B$2:$B$5,0),2),\"\")","v":"LRC"},"Peregrine","Mailchimp","221020 - LRC ADS_BG ER Peregrine Billable 13-2022","015-22","220920 - Peregrine - Mailchimp Essentials MC16642305.pdf"]
["2022-10-03","Monthly Fee Business Adv Relationship",-29.95,{"$f":"D93+Table14[[#This Row],[Amount]]","v":3845.7800000000007},{"$f":"IFERROR(INDEX(Lookup!$B$2:$C$5,MATCH(RIGHT(TRIM(Table14[[#This Row],[Description]]),4),Lookup!$B$2:$B$5,0),2),\"\")","v":""},"AGG",null,null,"-"]
["2022-10-06","DOWNLOAD-MONITOR. 10/06 PURCHASE BUCURESTI DEBIT CARD *7429",-159,{"$f":"D94+Table14[[#This Row],[Amount]]","v":3686.7800000000007},{"$f":"IFERROR(INDEX(Lookup!$B$2:$C$5,MATCH(RIGHT(TRIM(Table14[[#This Row],[Description]]),4),Lookup!$B$2:$B$5,0),2),\"\")","v":"FWC"},"Peregrine",null,"221201 - FWC ER Peregrine Billable EOY-2022","018-22","Peregrine - Download Monitor Invoice-3198.pdf"]
["2022-10-06","INTERNATIONAL TRANSACTION FEE 10/06 DOWNLOAD-MONITOR. BUCURESTI DEBIT CARD *7429",-4.7699999999999996,{"$f":"D95+Table14[[#This Row],[Amount]]","v":3682.0100000000007},{"$f":"IFERROR(INDEX(Lookup!$B$2:$C$5,MATCH(RIGHT(TRIM(Table14[[#This Row],[Description]]),4),Lookup!$B$2:$B$5,0),2),\"\")","v":"FWC"},"Peregrine",null,"221201 - FWC ER Peregrine Billable EOY-2022","018-22","221006 - INTERNATIONAL TRANSACTION FEE DOWNLOAD-MONITOR"]
["2022-10-17","STAMPS.COM 10/14 PURCHASE 855-608-2677 CA DEBIT CARD *7411",-17.989999999999998,{"$f":"D96+Table14[[#This Row],[Amount]]","v":3664.0200000000009},{"$f":"IFERROR(INDEX(Lookup!$B$2:$C$5,MATCH(RIGHT(TRIM(Table14[[#This Row],[Description]]),4),Lookup!$B$2:$B$5,0),2),\"\")","v":"LRC"},"AGG","Stamps","221020 - LRC ADS_BG ER Mastercard 12-2022","-","221017 - Stamps dot com.pdf"]
["2022-10-19","MAILCHIMP *MISC 10/18 PURCHASE MAILCHIMP.COM GA DEBIT CARD *7411",-11.62,{"$f":"D97+Table14[[#This Row],[Amount]]","v":3652.400000000001},{"$f":"IFERROR(INDEX(Lookup!$B$2:$C$5,MATCH(RIGHT(TRIM(Table14[[#This Row],[Description]]),4),Lookup!$B$2:$B$5,0),2),\"\")","v":"LRC"},"AGG","Mailchimp","221020 - LRC ADS_BG ER Mastercard 12-2022","-","221018 - AGG - Mailchimp Essentials MC16858121.pdf"]
["2022-10-20","MailChimp 10/20 PURCHASE Atlanta GA DEBIT CARD *7411",-59,{"$f":"D98+Table14[[#This Row],[Amount]]","v":3593.400000000001},{"$f":"IFERROR(INDEX(Lookup!$B$2:$C$5,MATCH(RIGHT(TRIM(Table14[[#This Row],[Description]]),4),Lookup!$B$2:$B$5,0),2),\"\")","v":"LRC"},"Peregrine","Mailchimp","221020 - LRC ADS_BG ER Peregrine Billable 13-2022","015-22","221020 - Peregrine - Mailchimp Essentials MC16642305.pdf"]
["2022-10-31","NATIONAL BUS AVIA 10/28 PURCHASE WASHINGTON DC DEBIT CARD *7411",-52.5,{"$f":"D99+Table14[[#This Row],[Amount]]","v":3540.900000000001},{"$f":"IFERROR(INDEX(Lookup!$B$2:$C$5,MATCH(RIGHT(TRIM(Table14[[#This Row],[Description]]),4),Lookup!$B$2:$B$5,0),2),\"\")","v":"LRC"},"AGG",null,"221201 - LRC ADS_BG ER Mastercard 15-2022","-","221028 - NBAA Affilliated Prof Membership 000430626.pdf"]
["2022-11-01","Monthly Fee Business Adv Relationship",-29.95,{"$f":"D100+Table14[[#This Row],[Amount]]","v":3510.9500000000012},{"$f":"IFERROR(INDEX(Lookup!$B$2:$C$5,MATCH(RIGHT(TRIM(Table14[[#This Row],[Description]]),4),Lookup!$B$2:$B$5,0),2),\"\")","v":""},"AGG",null,null,"-"]
["2022-11-02","PEREGRINE AVIONI DES:QUICKBOOKS ID:375020979 INDN:AVIAGLOBAL GROUP, LLC CO ID:1722616653 PPD",2000,{"$f":"D101+Table14[[#This Row],[Amount]]","v":5510.9500000000007},{"$f":"IFERROR(INDEX(Lookup!$B$2:$C$5,MATCH(RIGHT(TRIM(Table14[[#This Row],[Description]]),4),Lookup!$B$2:$B$5,0),2),\"\")","v":""},"Peregrine"]
["2022-11-14","STAMPS.COM 11/13 PURCHASE 855-608-2677 TX DEBIT CARD *7411",-17.989999999999998,{"$f":"D102+Table14[[#This Row],[Amount]]","v":5492.9600000000009},{"$f":"IFERROR(INDEX(Lookup!$B$2:$C$5,MATCH(RIGHT(TRIM(Table14[[#This Row],[Description]]),4),Lookup!$B$2:$B$5,0),2),\"\")","v":"LRC"},"AGG","Stamps","221201 - LRC ADS_BG ER Mastercard 15-2022","-","221114 - Stamps dot com.pdf"]
["2022-11-21","MAILCHIMP *MISC 11/18 PURCHASE MAILCHIMP.COM GA DEBIT CARD *7411",-11.62,{"$f":"D103+Table14[[#This Row],[Amount]]","v":5481.3400000000011},{"$f":"IFERROR(INDEX(Lookup!$B$2:$C$5,MATCH(RIGHT(TRIM(Table14[[#This Row],[Description]]),4),Lookup!$B$2:$B$5,0),2),\"\")","v":"LRC"},"AGG","Mailchimp","221201 - LRC ADS_BG ER Mastercard 15-2022","-","221118 - AGG - Mailchimp Essentials MC17077641.pdf"]
["2022-11-21","MailChimp 11/20 PURCHASE Atlanta GA DEBIT CARD *7411",-59,{"$f":"D104+Table14[[#This Row],[Amount]]","v":5422.3400000000011},{"$f":"IFERROR(INDEX(Lookup!$B$2:$C$5,MATCH(RIGHT(TRIM(Table14[[#This Row],[Description]]),4),Lookup!$B$2:$B$5,0),2),\"\")","v":"LRC"},"Peregrine","Mailchimp","221201 - LRC ADS_BG ER Peregrine Billable 14-2022","017-22","221120 - Peregrine - Mailchimp Essentials MC17092309.pdf"]
["2022-11-21","INMOTIONHOSTING.C 11/20 PURCHASE 888-3214678 CA DEBIT CARD *7429",-119.99,{"$f":"D105+Table14[[#This Row],[Amount]]","v":5302.3500000000013},{"$f":"IFERROR(INDEX(Lookup!$B$2:$C$5,MATCH(RIGHT(TRIM(Table14[[#This Row],[Description]]),4),Lookup!$B$2:$B$5,0),2),\"\")","v":"FWC"},"AGG",null,"221201 - FWC ER Mastercard Dec-2022","-","AGG - InMotion Hosting Receipt - IMH-314-144898-100.pdf"]
["2022-11-28","INMOTIONHOSTING.C 11/25 PURCHASE 888-3214678 CA DEBIT CARD *7429",-479.85,{"$f":"D106+Table14[[#This Row],[Amount]]","v":4822.5000000000009},{"$f":"IFERROR(INDEX(Lookup!$B$2:$C$5,MATCH(RIGHT(TRIM(Table14[[#This Row],[Description]]),4),Lookup!$B$2:$B$5,0),2),\"\")","v":"FWC"},"Peregrine",null,"221201 - FWC ER Peregrine Billable EOY-2022","018-22","Peregrine - InMotion Hosting - Receipt - IMH-414-1451828-5.pdf"]
["2022-12-01","Monthly Fee Business Adv Relationship",-29.95,{"$f":"D107+Table14[[#This Row],[Amount]]","v":4792.5500000000011},{"$f":"IFERROR(INDEX(Lookup!$B$2:$C$5,MATCH(RIGHT(TRIM(Table14[[#This Row],[Description]]),4),Lookup!$B$2:$B$5,0),2),\"\")","v":""},"AGG",null,null,"-"]
["2022-12-09","PEREGRINE AVIONI DES:QUICKBOOKS ID:375020979 INDN:AVIAGLOBAL GROUP, LLC CO ID:1722616653 PPD",2000,{"$f":"D108+Table14[[#This Row],[Amount]]","v":6792.5500000000011},{"$f":"IFERROR(INDEX(Lookup!$B$2:$C$5,MATCH(RIGHT(TRIM(Table14[[#This Row],[Description]]),4),Lookup!$B$2:$B$5,0),2),\"\")","v":""},"Peregrine"]
["2022-12-14","STAMPS.COM 12/13 PURCHASE 855-608-2677 TX DEBIT CARD *7411",-17.989999999999998,{"$f":"D109+Table14[[#This Row],[Amount]]","v":6774.5600000000013},{"$f":"IFERROR(INDEX(Lookup!$B$2:$C$5,MATCH(RIGHT(TRIM(Table14[[#This Row],[Description]]),4),Lookup!$B$2:$B$5,0),2),\"\")","v":"LRC"},"AGG","Stamps","221201 - LRC ADS_BG ER Mastercard 15-2022","-","221214 - Stamps dot com.pdf"]
["2022-12-19","INMOTIONHOSTING.C 12/16 PURCHASE 888-3214678 CA DEBIT CARD *7429",-39.58,{"$f":"D110+Table14[[#This Row],[Amount]]","v":6734.9800000000014},{"$f":"IFERROR(INDEX(Lookup!$B$2:$C$5,MATCH(RIGHT(TRIM(Table14[[#This Row],[Description]]),4),Lookup!$B$2:$B$5,0),2),\"\")","v":"FWC"},"AGG",null,"221226 - FWC ER Mastercard EOY-2022","-","220220 - InMotion Hosting - IMH-314-144898-104.pdf"]
["2022-12-19","MAILCHIMP *MISC 12/18 PURCHASE MAILCHIMP.COM GA DEBIT CARD *7411",-11.62,{"$f":"D111+Table14[[#This Row],[Amount]]","v":6723.3600000000015},{"$f":"IFERROR(INDEX(Lookup!$B$2:$C$5,MATCH(RIGHT(TRIM(Table14[[#This Row],[Description]]),4),Lookup!$B$2:$B$5,0),2),\"\")","v":"LRC"},"AGG","Mailchimp","221223 - LRC ADS_BG ER Mastercard 16-2022","-","221218 - AGG - Mailchimp Essentials MC17295205.pdf"]
["2022-12-20","PEREGRINE AVIONI DES:QUICKBOOKS ID:375020979 INDN:AVIAGLOBAL GROUP, LLC CO ID:1722616653 PPD",7063.61,{"$f":"D112+Table14[[#This Row],[Amount]]","v":13786.970000000001},{"$f":"IFERROR(INDEX(Lookup!$B$2:$C$5,MATCH(RIGHT(TRIM(Table14[[#This Row],[Description]]),4),Lookup!$B$2:$B$5,0),2),\"\")","v":""},"Peregrine"]
["2022-12-20","MailChimp 12/20 PURCHASE Atlanta GA DEBIT CARD *7411",-59,{"$f":"D113+Table14[[#This Row],[Amount]]","v":13727.970000000001},{"$f":"IFERROR(INDEX(Lookup!$B$2:$C$5,MATCH(RIGHT(TRIM(Table14[[#This Row],[Description]]),4),Lookup!$B$2:$B$5,0),2),\"\")","v":"LRC"},"Peregrine","Mailchimp","221223 - LRC ADS_BG ER Peregrine Billable 17-2022","004-23","221220 - Peregrine - Mailchimp Essentials MC17309841.pdf"]
["2022-12-22","TRANSFER AVIAGLOBAL GROUP, LL:ADS-B Global LLC Confirmation# 0273896038",-3300,{"$f":"D114+Table14[[#This Row],[Amount]]","v":10427.970000000001},{"$f":"IFERROR(INDEX(Lookup!$B$2:$C$5,MATCH(RIGHT(TRIM(Table14[[#This Row],[Description]]),4),Lookup!$B$2:$B$5,0),2),\"\")","v":""}]
["2022-12-22","TRANSFER AVIAGLOBAL GROUP, LL:Forrest Colliver Confirmation# 0273906671",-3300,{"$f":"D115+Table14[[#This Row],[Amount]]","v":7127.9700000000012},{"$f":"IFERROR(INDEX(Lookup!$B$2:$C$5,MATCH(RIGHT(TRIM(Table14[[#This Row],[Description]]),4),Lookup!$B$2:$B$5,0),2),\"\")","v":""}]
["2022-12-22","Online Banking Transfer Conf# fr8bmzdeg; AERO BUSINESS DEVELOPEMENT LLC",-3300,{"$f":"D116+Table14[[#This Row],[Amount]]","v":3827.9700000000012},{"$f":"IFERROR(INDEX(Lookup!$B$2:$C$5,MATCH(RIGHT(TRIM(Table14[[#This Row],[Description]]),4),Lookup!$B$2:$B$5,0),2),\"\")","v":""}]
["2022-12-23","TRANSFER AVIAGLOBAL GROUP, LL:Forrest Colliver Confirmation# 0281150631",-1549.3,{"$f":"D117+Table14[[#This Row],[Amount]]","v":2278.670000000001},{"$f":"IFERROR(INDEX(Lookup!$B$2:$C$5,MATCH(RIGHT(TRIM(Table14[[#This Row],[Description]]),4),Lookup!$B$2:$B$5,0),2),\"\")","v":""}]
["2022-12-23","TRANSFER AVIAGLOBAL GROUP, LL:ADS-B Global LLC Confirmation# 1581367783",-70.62,{"$f":"D118+Table14[[#This Row],[Amount]]","v":2208.0500000000011},{"$f":"IFERROR(INDEX(Lookup!$B$2:$C$5,MATCH(RIGHT(TRIM(Table14[[#This Row],[Description]]),4),Lookup!$B$2:$B$5,0),2),\"\")","v":""}]
["2022-12-23","External transfer fee - 3 Day - 12/22/2022 Confirmation: 418383038",-1,{"$f":"D119+Table14[[#This Row],[Amount]]","v":2207.0500000000011},{"$f":"IFERROR(INDEX(Lookup!$B$2:$C$5,MATCH(RIGHT(TRIM(Table14[[#This Row],[Description]]),4),Lookup!$B$2:$B$5,0),2),\"\")","v":""},"AGG"]
["2022-12-23","External transfer fee - 3 Day - 12/22/2022 Confirmation: 418383332",-1,{"$f":"D120+Table14[[#This Row],[Amount]]","v":2206.0500000000011},{"$f":"IFERROR(INDEX(Lookup!$B$2:$C$5,MATCH(RIGHT(TRIM(Table14[[#This Row],[Description]]),4),Lookup!$B$2:$B$5,0),2),\"\")","v":""},"AGG"]
["2022-12-27","External transfer fee - Next Day - 12/23/2022 Confirmation: 418570494",-5,{"$f":"D121+Table14[[#This Row],[Amount]]","v":2201.0500000000011},{"$f":"IFERROR(INDEX(Lookup!$B$2:$C$5,MATCH(RIGHT(TRIM(Table14[[#This Row],[Description]]),4),Lookup!$B$2:$B$5,0),2),\"\")","v":""},"AGG"]
["2022-12-27","External transfer fee - 3 Day - 12/23/2022 Confirmation: 418577030",-1,{"$f":"D122+Table14[[#This Row],[Amount]]","v":2200.0500000000011},{"$f":"IFERROR(INDEX(Lookup!$B$2:$C$5,MATCH(RIGHT(TRIM(Table14[[#This Row],[Description]]),4),Lookup!$B$2:$B$5,0),2),\"\")","v":""},"AGG"]
["2023-01-03","OWL FOR THUNDERBI 01/02 PURCHASE WIESBADEN DEBIT CARD *7429",-10.7,{"$f":"D123+Table14[[#This Row],[Amount]]","v":2189.3500000000013},"FWC","AE"]
["2023-01-03","Monthly Fee Business Adv Relationship",-29.95,{"$f":"D124+Table14[[#This Row],[Amount]]","v":2159.4000000000015},null,"AGG"]
["2023-01-03","INTERNATIONAL TRANSACTION FEE 01/02 OWL FOR THUNDERBI WIESBADEN DEBIT CARD *7429",-0.32,{"$f":"D125+Table14[[#This Row],[Amount]]","v":2159.0800000000013},"FWC","AE"]
["2023-01-05","PEREGRINE AVIONI DES:QUICKBOOKS ID:375020979 INDN:AVIAGLOBAL GROUP, LLC CO ID:1722616653 PPD",441.97,{"$f":"D126+Table14[[#This Row],[Amount]]","v":2601.0500000000011},null,"Peregrine"]
["2023-01-17","STAMPS.COM 01/14 PURCHASE 855-608-2677 TX DEBIT CARD *7411",-17.989999999999998,{"$f":"D127+Table14[[#This Row],[Amount]]","v":2583.0600000000013},"LRC","AE"]
["2023-01-18","MICHAEL L STUCK C 01/17 PURCHASE SCOTTSDALE AZ DEBIT CARD *0975",-625,{"$f":"D128+Table14[[#This Row],[Amount]]","v":1958.0600000000013},"HEA","AGG"]
["2023-01-19","MAILCHIMP *MISC 01/18 PURCHASE MAILCHIMP.COM GA DEBIT CARD *7411",-13.73,{"$f":"D129+Table14[[#This Row],[Amount]]","v":1944.3300000000013},"LRC","AE",null,null,null,"230118 - AE - Mailchimp Essentials MC17507446.pdf"]
["2023-01-20","Mailchimp 01/20 PURCHASE Atlanta GA DEBIT CARD *7411",-69,{"$f":"D130+Table14[[#This Row],[Amount]]","v":1875.3300000000013},"LRC","Peregrine",null,null,"002-23","230120 - Peregrine - Mailchimp Essentials MC17521714.pdf"]
["2023-01-24","ELEMENTOR 01/24 PURCHASE WILMINGTON DE DEBIT CARD *7429",-49,{"$f":"D131+Table14[[#This Row],[Amount]]","v":1826.3300000000013},"FWC","Peregrine",null,null,"004-23"]
["2023-01-25","REALLY-SIMPLE-SSL 01/24 PURCHASE GRONINGEN DEBIT CARD *7429",-23.2,{"$f":"D132+Table14[[#This Row],[Amount]]","v":1803.1300000000012},"FWC","Peregrine",null,null,"004-23"]
["2023-01-25","COMPLIANZ-GDPR-PR 01/25 PURCHASE GRONINGEN DEBIT CARD *7429",-45,{"$f":"D133+Table14[[#This Row],[Amount]]","v":1758.1300000000012},"FWC","Peregrine",null,null,"004-23"]
["2023-01-25","INTERNATIONAL TRANSACTION FEE 01/25 COMPLIANZ-GDPR-PR GRONINGEN DEBIT CARD *7429",-1.35,{"$f":"D134+Table14[[#This Row],[Amount]]","v":1756.7800000000013},"FWC","Peregrine",null,null,"004-23"]
["2023-01-25","INTERNATIONAL TRANSACTION FEE 01/24 REALLY-SIMPLE-SSL GRONINGEN DEBIT CARD *7429",-0.7,{"$f":"D135+Table14[[#This Row],[Amount]]","v":1756.0800000000013},"FWC","Peregrine",null,null,"004-23"]
["2023-02-01","Monthly Fee Business Adv Relationship",-29.95,{"$f":"D136+Table14[[#This Row],[Amount]]","v":1726.1300000000012},"LRC","AGG"]
["2023-02-14","STAMPS.COM 02/13 PURCHASE 855-608-2677 TX DEBIT CARD *7411",-17.989999999999998,{"$f":"D137+Table14[[#This Row],[Amount]]","v":1708.1400000000012},"LRC","AE"]
["2023-02-15","PEREGRINE AVIONI DES:QUICKBOOKS ID:375020979 INDN:AVIAGLOBAL GROUP, LLC CO ID:1722616653 PPD",2000,{"$f":"D138+Table14[[#This Row],[Amount]]","v":3708.1400000000012},null,"Peregrine"]
["2023-02-21","MAILCHIMP *MISC 02/18 PURCHASE MAILCHIMP.COM GA DEBIT CARD *7411",-13.73,{"$f":"D139+Table14[[#This Row],[Amount]]","v":3694.4100000000012},"LRC","AE"]
["2023-02-21","Mailchimp 02/20 PURCHASE Atlanta GA DEBIT CARD *7411",-69,{"$f":"D140+Table14[[#This Row],[Amount]]","v":3625.4100000000012},"LRC","Peregrine",null,null,"002-23"]

{"sheet":"Peregrine transactions","index":1,"n_rows":205,"n_cols":10,"rows_kept":205,"cut":false,"hidden":false,"merged":[]}
["Date","Description","Amount","Running Bal.","Who","Bill to","Column1","Expense Report?","Invoice","Charge Receipt"]
["2022-01-01","Beginning balance as of 01/01/2022",null,663.71,{"$f":"IFERROR(INDEX(Lookup!$B$2:$C$5,MATCH(RIGHT(TRIM(Table1[[#This Row],[Description]]),4),Lookup!$B$2:$B$5,0),2),\"\")","v":""}]
["2022-01-03","OWL FOR THUNDERBI 01/02 PURCHASE WIESBADEN DEBIT CARD *7429",-11.38,{"$f":"D2+Table1[[#This Row],[Amount]]","v":652.33000000000004},{"$f":"IFERROR(INDEX(Lookup!$B$2:$C$5,MATCH(RIGHT(TRIM(Table1[[#This Row],[Description]]),4),Lookup!$B$2:$B$5,0),2),\"\")","v":"FWC"},"AGG","Outlook","221226 - FWC ER Mastercard EOY-2022","-","220102 - OWL invoice 3-47107.pdf"]
["2022-01-03","Monthly Fee Business Adv Relationship",-29.95,{"$f":"D3+Table1[[#This Row],[Amount]]","v":622.38},{"$f":"IFERROR(INDEX(Lookup!$B$2:$C$5,MATCH(RIGHT(TRIM(Table1[[#This Row],[Description]]),4),Lookup!$B$2:$B$5,0),2),\"\")","v":""},"AGG",null,null,"-"]
["2022-01-03","INTERNATIONAL TRANSACTION FEE 01/02 OWL FOR THUNDERBI WIESBADEN DEBIT CARD *7429",-0.34,{"$f":"D4+Table1[[#This Row],[Amount]]","v":622.04},{"$f":"IFERROR(INDEX(Lookup!$B$2:$C$5,MATCH(RIGHT(TRIM(Table1[[#This Row],[Description]]),4),Lookup!$B$2:$B$5,0),2),\"\")","v":"FWC"},"AGG","Outlook","221226 - FWC ER Mastercard EOY-2022","-",{"$f":"TEXT(Table1[[#This Row],[Date]],\"YYMMDD\")&\" - Intl Transaction Fee - \"&LEFT(RIGHT(Table1[[#This Row],[Description]],LEN(Table1[[#This Row],[Description]])-LEN(\"international transaction fee xx/xx \")),SEARCH(\"DEBIT\",RIGHT(Table1[[#This Row],[Description]],LEN(Table1[[#This Row],[Description]])-LEN(\"international transaction fee xx/xx xx\"))))&\".pdf\"","v":"220103 - Intl Transaction Fee - OWL FOR THUNDERBI WIESBADEN.pdf"}]
["2022-01-19","MAILCHIMP *MISC 01/18 PURCHASE MAILCHIMP.COM GA DEBIT CARD *7411",-9.49,{"$f":"D5+Table1[[#This Row],[Amount]]","v":612.54999999999995},{"$f":"IFERROR(INDEX(Lookup!$B$2:$C$5,MATCH(RIGHT(TRIM(Table1[[#This Row],[Description]]),4),Lookup!$B$2:$B$5,0),2),\"\")","v":"LRC"},"AGG","Mailchimp","220310 - LRC ADS_BG ER MasterCard 04-2022","-","220118 - AGG - Mailchimp Essentials MC14760854.pdf"]
["2022-01-20","MailChimp 01/20 PURCHASE Atlanta GA DEBIT CARD *7411",-47.69,{"$f":"D6+Table1[[#This Row],[Amount]]","v":564.8599999999999},{"$f":"IFERROR(INDEX(Lookup!$B$2:$C$5,MATCH(RIGHT(TRIM(Table1[[#This Row],[Description]]),4),Lookup!$B$2:$B$5,0),2),\"\")","v":"LRC"},"Peregrine","Mailchimp","220310 - LRC ADS_BG ER MasterCard Peregrine Billable 03-2022","005-22","220120 - Peregrine - Mailchimp Essentials MC14777938.pdf"]
["2022-01-24","PEREGRINE AVIONI DES:QUICKBOOKS ID:375020979 INDN:AVIAGLOBAL GROUP, LLC CO ID:1722616653 PPD",1500,{"$f":"D7+Table1[[#This Row],[Amount]]","v":2064.8599999999997},{"$f":"IFERROR(INDEX(Lookup!$B$2:$C$5,MATCH(RIGHT(TRIM(Table1[[#This Row],[Description]]),4),Lookup!$B$2:$B$5,0),2),\"\")","v":""},"Peregrine"]
["2022-01-24","SOFTACULOUS 01/24 PURCHASE ABU DHABI DEBIT CARD *7429",-24,{"$f":"D8+Table1[[#This Row],[Amount]]","v":2040.8599999999997},{"$f":"IFERROR(INDEX(Lookup!$B$2:$C$5,MATCH(RIGHT(TRIM(Table1[[#This Row],[Description]]),4),Lookup!$B$2:$B$5,0),2),\"\")","v":"FWC"},"Peregrine","Security","221221 - FWC ER Peregrine Billable 1Q22","020-22","220124 - Softaculous Loginizer 783150.pdf"]
["2022-01-24","ELEMENTOR 01/24 PURCHASE WILMINGTON DE DEBIT CARD *7429",-49,{"$f":"D9+Table1[[#This Row],[Amount]]","v":1991.8599999999997},{"$f":"IFERROR(INDEX(Lookup!$B$2:$C$5,MATCH(RIGHT(TRIM(Table1[[#This Row],[Description]]),4),Lookup!$B$2:$B$5,0),2),\"\")","v":"FWC"},"Peregrine","CMS Editor","221221 - FWC ER Peregrine Billable 1Q22","020-22","220124 - Elementor Pro.pdf"]
["2022-01-24","INTERNATIONAL TRANSACTION FEE 01/24 SOFTACULOUS ABU DHABI DEBIT CARD *7429",-0.72,{"$f":"D10+Table1[[#This Row],[Amount]]","v":1991.1399999999996},{"$f":"IFERROR(INDEX(Lookup!$B$2:$C$5,MATCH(RIGHT(TRIM(Table1[[#This Row],[Description]]),4),Lookup!$B$2:$B$5,0),2),\"\")","v":"FWC"},"Peregrine","Fee","221221 - FWC ER Peregrine Billable 1Q22","020-22",{"$f":"TEXT(Table1[[#This Row],[Date]],\"YYMMDD\")&\" - Intl Transaction Fee - \"&LEFT(RIGHT(Table1[[#This Row],[Description]],LEN(Table1[[#This Row],[Description]])-LEN(\"international transaction fee xx/xx \")),SEARCH(\"DEBIT\",RIGHT(Table1[[#This Row],[Description]],LEN(Table1[[#This Row],[Description]])-LEN(\"international transaction fee xx/xx xx\"))))&\".pdf\"","v":"220124 - Intl Transaction Fee - SOFTACULOUS ABU DHABI.pdf"}]
["2022-01-25","REALLY-SIMPLE-SSL 01/24 PURCHASE GRONINGEN DEBIT CARD *7429",-23.2,{"$f":"D11+Table1[[#This Row],[Amount]]","v":1967.9399999999996},{"$f":"IFERROR(INDEX(Lookup!$B$2:$C$5,MATCH(RIGHT(TRIM(Table1[[#This Row],[Description]]),4),Lookup!$B$2:$B$5,0),2),\"\")","v":"FWC"},"Peregrine","SSL Cert Manager","221221 - FWC ER Peregrine Billable 1Q22","020-22","220124 - Really Simple SSL 2022-1993.pdf"]
["2022-01-25","COMPLIANZ-GDPR-PR 01/25 PURCHASE GRONINGEN DEBIT CARD *7429",-45,{"$f":"D12+Table1[[#This Row],[Amount]]","v":1922.9399999999996},{"$f":"IFERROR(INDEX(Lookup!$B$2:$C$5,MATCH(RIGHT(TRIM(Table1[[#This Row],[Description]]),4),Lookup!$B$2:$B$5,0),2),\"\")","v":"FWC"},"Peregrine","Privacy Compliance","221221 - FWC ER Peregrine Billable 1Q22","020-22","220125 - Complianz 2022-0745.pdf"]
["2022-01-25","INTERNATIONAL TRANSACTION FEE 01/25 COMPLIANZ-GDPR-PR GRONINGEN DEBIT CARD *7429",-1.35,{"$f":"D13+Table1[[#This Row],[Amount]]","v":1921.5899999999997},{"$f":"IFERROR(INDEX(Lookup!$B$2:$C$5,MATCH(RIGHT(TRIM(Table1[[#This Row],[Description]]),4),Lookup!$B$2:$B$5,0),2),\"\")","v":"FWC"},"Peregrine","Fee","221221 - FWC ER Peregrine Billable 1Q22","020-22",{"$f":"TEXT(Table1[[#This Row],[Date]],\"YYMMDD\")&\" - Intl Transaction Fee - \"&LEFT(RIGHT(Table1[[#This Row],[Description]],LEN(Table1[[#This Row],[Description]])-LEN(\"international transaction fee xx/xx \")),SEARCH(\"DEBIT\",RIGHT(Table1[[#This Row],[Description]],LEN(Table1[[#This Row],[Description]])-LEN(\"international transaction fee xx/xx xx\"))))&\".pdf\"","v":"220125 - Intl Transaction Fee - COMPLIANZ-GDPR-PR GRONINGEN.pdf"}]
["2022-01-25","INTERNATIONAL TRANSACTION FEE 01/24 REALLY-SIMPLE-SSL GRONINGEN DEBIT CARD *7429",-0.7,{"$f":"D14+Table1[[#This Row],[Amount]]","v":1920.8899999999996},{"$f":"IFERROR(INDEX(Lookup!$B$2:$C$5,MATCH(RIGHT(TRIM(Table1[[#This Row],[Description]]),4),Lookup!$B$2:$B$5,0),2),\"\")","v":"FWC"},"Peregrine","Fee","221221 - FWC ER Peregrine Billable 1Q22","020-22",{"$f":"TEXT(Table1[[#This Row],[Date]],\"YYMMDD\")&\" - Intl Transaction Fee - \"&LEFT(RIGHT(Table1[[#This Row],[Description]],LEN(Table1[[#This Row],[Description]])-LEN(\"international transaction fee xx/xx \")),SEARCH(\"DEBIT\",RIGHT(Table1[[#This Row],[Description]],LEN(Table1[[#This Row],[Description]])-LEN(\"international transaction fee xx/xx xx\"))))&\".pdf\"","v":"220125 - Intl Transaction Fee - REALLY-SIMPLE-SSL GRONINGEN.pdf"}]
["2022-01-26","BLS*Single Card 01/25 PURCHASE 972547584908 DEBIT CARD *7411",-6.99,{"$f":"D15+Table1[[#This Row],[Amount]]","v":1913.8999999999996},{"$f":"IFERROR(INDEX(Lookup!$B$2:$C$5,MATCH(RIGHT(TRIM(Table1[[#This Row],[Description]]),4),Lookup!$B$2:$B$5,0),2),\"\")","v":"LRC"},"AGG",null,"220310 - LRC ADS_BG ER MasterCard 04-2022","-","220125 - Clear Coast Greetings Island 341592115.pdf"]
["2022-01-26","INTERNATIONAL TRANSACTION FEE 01/25 BLS*Single Card 972547584908 DEBIT CARD *7411",-0.21,{"$f":"D16+Table1[[#This Row],[Amount]]","v":1913.6899999999996},{"$f":"IFERROR(INDEX(Lookup!$B$2:$C$5,MATCH(RIGHT(TRIM(Table1[[#This Row],[Description]]),4),Lookup!$B$2:$B$5,0),2),\"\")","v":"LRC"},"AGG",null,"220310 - LRC ADS_BG ER MasterCard 04-2022","-","220125 - Clear Coast Greetings Island 341592115.pdf"]
["2022-02-01","Monthly Fee Business Adv Relationship",-29.95,{"$f":"D17+Table1[[#This Row],[Amount]]","v":1883.7399999999996},{"$f":"IFERROR(INDEX(Lookup!$B$2:$C$5,MATCH(RIGHT(TRIM(Table1[[#This Row],[Description]]),4),Lookup!$B$2:$B$5,0),2),\"\")","v":""},"AGG",null,null,"-"]
["2022-02-07","INMOTIONHOSTING.C 02/06 PURCHASE 888-3214678 CA DEBIT CARD *7429",-37.18,{"$f":"D18+Table1[[#This Row],[Amount]]","v":1846.5599999999995},{"$f":"IFERROR(INDEX(Lookup!$B$2:$C$5,MATCH(RIGHT(TRIM(Table1[[#This Row],[Description]]),4),Lookup!$B$2:$B$5,0),2),\"\")","v":"FWC"},"AGG","Domain","221226 - FWC ER Mastercard EOY-2022","-","220220 - InMotion Hosting - IMH-314-144898-87.pdf"]
["2022-02-14","JET NET 02/10 PURCHASE 315-797-4420 NY DEBIT CARD *7411",-850,{"$f":"D19+Table1[[#This Row],[Amount]]","v":996.55999999999949},{"$f":"IFERROR(INDEX(Lookup!$B$2:$C$5,MATCH(RIGHT(TRIM(Table1[[#This Row],[Description]]),4),Lookup!$B$2:$B$5,0),2),\"\")","v":"LRC"},"Peregrine",null,"220211 ‐ LRC ADS_BG ER MasterCard Peregrine Billable 02a‐2022","003-22","Executed Custom Special Report Project Agreement AviaGlobal Group LLC[84].pdf"]
["2022-02-18","PEREGRINE AVIONI DES:QUICKBOOKS ID:375020979 INDN:AVIAGLOBAL GROUP, LLC CO ID:1722616653 PPD",1500,{"$f":"D20+Table1[[#This Row],[Amount]]","v":2496.5599999999995},{"$f":"IFERROR(INDEX(Lookup!$B$2:$C$5,MATCH(RIGHT(TRIM(Table1[[#This Row],[Description]]),4),Lookup!$B$2:$B$5,0),2),\"\")","v":""},"Peregrine"]
["2022-02-22","MailChimp 02/20 PURCHASE Atlanta GA DEBIT CARD *7411",-59,{"$f":"D21+Table1[[#This Row],[Amount]]","v":2437.5599999999995},{"$f":"IFERROR(INDEX(Lookup!$B$2:$C$5,MATCH(RIGHT(TRIM(Table1[[#This Row],[Description]]),4),Lookup!$B$2:$B$5,0),2),\"\")","v":"LRC"},"Peregrine","Mailchimp","220310 - LRC ADS_BG ER MasterCard Peregrine Billable 03-2022","005-22","220220 - Peregrine - Mailchimp Essentials MC15026518.pdf"]
["2022-02-22","MAILCHIMP *MISC 02/18 PURCHASE MAILCHIMP.COM GA DEBIT CARD *7411",-11.62,{"$f":"D22+Table1[[#This Row],[Amount]]","v":2425.9399999999996},{"$f":"IFERROR(INDEX(Lookup!$B$2:$C$5,MATCH(RIGHT(TRIM(Table1[[#This Row],[Description]]),4),Lookup!$B$2:$B$5,0),2),\"\")","v":"LRC"},"AGG","Mailchimp","220310 - LRC ADS_BG ER MasterCard 04-2022","-","220218 - AGG - Mailchimp Essentials MC15010226.pdf"]
["2022-03-01","Monthly Fee Business Adv Relationship",-29.95,{"$f":"D23+Table1[[#This Row],[Amount]]","v":2395.9899999999998},{"$f":"IFERROR(INDEX(Lookup!$B$2:$C$5,MATCH(RIGHT(TRIM(Table1[[#This Row],[Description]]),4),Lookup!$B$2:$B$5,0),2),\"\")","v":""},"AGG",null,null,"-"]
["2022-03-15","Amazon.com*1N91P5 03/14 PURCHASE Amzn.com/bill WA DEBIT CARD *7411",-66.66,{"$f":"D24+Table1[[#This Row],[Amount]]","v":2329.33},{"$f":"IFERROR(INDEX(Lookup!$B$2:$C$5,MATCH(RIGHT(TRIM(Table1[[#This Row],[Description]]),4),Lookup!$B$2:$B$5,0),2),\"\")","v":"LRC"},"Peregrine",null,"220310 - LRC ADS_BG ER MasterCard Peregrine Billable 03-2022","006-22","Amazon.com - Order 111-7793024-7025007.pdf"]
["2022-03-15","STAMPS.COM 03/14 PURCHASE 855-608-2677 CA DEBIT CARD *7411",-30.12,{"$f":"D25+Table1[[#This Row],[Amount]]","v":2299.21},{"$f":"IFERROR(INDEX(Lookup!$B$2:$C$5,MATCH(RIGHT(TRIM(Table1[[#This Row],[Description]]),4),Lookup!$B$2:$B$5,0),2),\"\")","v":"LRC"},"Peregrine","Stamps","220310 - LRC ADS_BG ER MasterCard Peregrine Billable 03-2022","006-22","Stamps dot com st2385760.pdf"]
["2022-03-15","STAMPS.COM 03/14 PURCHASE 855-608-2677 CA DEBIT CARD *7411",-19.190000000000001,{"$f":"D26+Table1[[#This Row],[Amount]]","v":2280.02},{"$f":"IFERROR(INDEX(Lookup!$B$2:$C$5,MATCH(RIGHT(TRIM(Table1[[#This Row],[Description]]),4),Lookup!$B$2:$B$5,0),2),\"\")","v":"LRC"},"AGG","Stamps","220322 ‐ LRC ADS_BG ER MasterCard 07‐2022","-","Stamps dot com st2385037.pdf"]
["2022-03-15","TRANSFER AVIAGLOBAL GROUP, LL:ADS-B Global LLC Confirmation# 1737069000",-74.099999999999994,{"$f":"D27+Table1[[#This Row],[Amount]]","v":2205.92},{"$f":"IFERROR(INDEX(Lookup!$B$2:$C$5,MATCH(RIGHT(TRIM(Table1[[#This Row],[Description]]),4),Lookup!$B$2:$B$5,0),2),\"\")","v":""}]
["2022-03-16","MONSTERINSIGHTS W 03/16 PURCHASE PALM BEACH GA FL DEBIT CARD *7429",-199,{"$f":"D28+Table1[[#This Row],[Amount]]","v":2006.92},{"$f":"IFERROR(INDEX(Lookup!$B$2:$C$5,MATCH(RIGHT(TRIM(Table1[[#This Row],[Description]]),4),Lookup!$B$2:$B$5,0),2),\"\")","v":"FWC"},"Peregrine","Web Traffic","221221 - FWC ER Peregrine Billable 1Q22","020-22","220316 - Monster Insights Invoice 543619.pdf"]
["2022-03-16","SEMPER PLUGINS AI 03/16 PURCHASE PALM BEACH GA FL DEBIT CARD *7429",-99,{"$f":"D29+Table1[[#This Row],[Amount]]","v":1907.92},{"$f":"IFERROR(INDEX(Lookup!$B$2:$C$5,MATCH(RIGHT(TRIM(Table1[[#This Row],[Description]]),4),Lookup!$B$2:$B$5,0),2),\"\")","v":"FWC"},"Peregrine","SEO Plugin","221221 - FWC ER Peregrine Billable 1Q22","020-22","220315 - aioseo Invoice 80192.pdf"]
["2022-03-16","External transfer fee - 3 Day - 03/15/2022 Confirmation: 379444042",-1,{"$f":"D30+Table1[[#This Row],[Amount]]","v":1906.92},"FWC","AGG",null,"221226 - FWC ER Mastercard EOY-2022","-"]
["2022-03-17","PEREGRINE AVIONI DES:QUICKBOOKS ID:375020979 INDN:AVIAGLOBAL GROUP, LLC CO ID:1722616653 PPD",3850,{"$f":"D31+Table1[[#This Row],[Amount]]","v":5756.92},{"$f":"IFERROR(INDEX(Lookup!$B$2:$C$5,MATCH(RIGHT(TRIM(Table1[[#This Row],[Description]]),4),Lookup!$B$2:$B$5,0),2),\"\")","v":""},"Peregrine"]
["2022-03-18","USPS STAMPS ENDIC 03/17 PURCHASE 888-434-0055 DC DEBIT CARD *7411",-100,{"$f":"D32+Table1[[#This Row],[Amount]]","v":5656.92},{"$f":"IFERROR(INDEX(Lookup!$B$2:$C$5,MATCH(RIGHT(TRIM(Table1[[#This Row],[Description]]),4),Lookup!$B$2:$B$5,0),2),\"\")","v":"LRC"},"Peregrine","Stamps","220310 - LRC ADS_BG ER MasterCard Peregrine Billable 03-2022","006-22","Stamps dot com Postage orders.pdf"]
["2022-03-18","USPS STAMPS ENDIC 03/17 PURCHASE 888-434-0055 DC DEBIT CARD *7411",-50,{"$f":"D33+Table1[[#This Row],[Amount]]","v":5606.92},{"$f":"IFERROR(INDEX(Lookup!$B$2:$C$5,MATCH(RIGHT(TRIM(Table1[[#This Row],[Description]]),4),Lookup!$B$2:$B$5,0),2),\"\")","v":"LRC"},"Peregrine","Stamps","220310 - LRC ADS_BG ER MasterCard Peregrine Billable 03-2022","006-22","Stamps dot com Postage orders.pdf"]
["2022-03-18","AMZN Mktp US*1N5B 03/17 PURCHASE Amzn.com/bill WA DEBIT CARD *7411",-29.63,{"$f":"D34+Table1[[#This Row],[Amount]]","v":5577.29},{"$f":"IFERROR(INDEX(Lookup!$B$2:$C$5,MATCH(RIGHT(TRIM(Table1[[#This Row],[Description]]),4),Lookup!$B$2:$B$5,0),2),\"\")","v":"LRC"},"Peregrine",null,"220310 - LRC ADS_BG ER MasterCard Peregrine Billable 03-2022","006-22","Amazon.com - Order 114-5434031-3824202.pdf"]
["2022-03-21","MailChimp 03/20 PURCHASE Atlanta GA DEBIT CARD *7411",-59,{"$f":"D35+Table1[[#This Row],[Amount]]","v":5518.29},{"$f":"IFERROR(INDEX(Lookup!$B$2:$C$5,MATCH(RIGHT(TRIM(Table1[[#This Row],[Description]]),4),Lookup!$B$2:$B$5,0),2),\"\")","v":"LRC"},"Peregrine","Mailchimp","220310 - LRC ADS_BG ER MasterCard Peregrine Billable 03-2022","006-22","220320 - Peregrine - Mailchimp Essentials MC15268026.pdf"]
["2022-03-21","MAILCHIMP *MISC 03/18 PURCHASE MAILCHIMP.COM GA DEBIT CARD *7411",-11.62,{"$f":"D36+Table1[[#This Row],[Amount]]","v":5506.67},{"$f":"IFERROR(INDEX(Lookup!$B$2:$C$5,MATCH(RIGHT(TRIM(Table1[[#This Row],[Description]]),4),Lookup!$B$2:$B$5,0),2),\"\")","v":"LRC"},"AGG","Mailchimp","220322 ‐ LRC ADS_BG ER MasterCard 07‐2022","-","220318 - AGG - Mailchimp Essentials MC15252178.pdf"]
["2022-03-23","TRANSFER AVIAGLOBAL GROUP, LL:ADS-B Global LLC Confirmation# 0107351744",-96.55,{"$f":"D37+Table1[[#This Row],[Amount]]","v":5410.12},{"$f":"IFERROR(INDEX(Lookup!$B$2:$C$5,MATCH(RIGHT(TRIM(Table1[[#This Row],[Description]]),4),Lookup!$B$2:$B$5,0),2),\"\")","v":""}]
["2022-03-24","USPS STAMPS ENDIC 03/23 PURCHASE 888-434-0055 DC DEBIT CARD *7411",-25,{"$f":"D38+Table1[[#This Row],[Amount]]","v":5385.12},{"$f":"IFERROR(INDEX(Lookup!$B$2:$C$5,MATCH(RIGHT(TRIM(Table1[[#This Row],[Description]]),4),Lookup!$B$2:$B$5,0),2),\"\")","v":"LRC"},"Peregrine","Stamps","220310 - LRC ADS_BG ER MasterCard Peregrine Billable 03-2022","006-22","Stamps dot com Postage orders.pdf"]
["2022-03-24","External transfer fee - 3 Day - 03/23/2022 Confirmation: 380466874",-1,{"$f":"D39+Table1[[#This Row],[Amount]]","v":5384.12},{"$f":"IFERROR(INDEX(Lookup!$B$2:$C$5,MATCH(RIGHT(TRIM(Table1[[#This Row],[Description]]),4),Lookup!$B$2:$B$5,0),2),\"\")","v":""},"AGG",null,null,"-"]
["2022-03-29","MICHAEL L STUCK C 03/28 PURCHASE SCOTTSDALE AZ DEBIT CARD *0975",-575,{"$f":"D40+Table1[[#This Row],[Amount]]","v":4809.12},{"$f":"IFERROR(INDEX(Lookup!$B$2:$C$5,MATCH(RIGHT(TRIM(Table1[[#This Row],[Description]]),4),Lookup!$B$2:$B$5,0),2),\"\")","v":"HEA"},"AGG",null,null,null,"HEA AGG ER 01-2022 DebitCardRecon"]
["2022-03-31","NATIONAL BUS AVIA 03/31 PURCHASE WASHINGTON DC DEBIT CARD *7411",-750,{"$f":"D41+Table1[[#This Row],[Amount]]","v":4059.12},{"$f":"IFERROR(INDEX(Lookup!$B$2:$C$5,MATCH(RIGHT(TRIM(Table1[[#This Row],[Description]]),4),Lookup!$B$2:$B$5,0),2),\"\")","v":"LRC"},"AGG",null,"221227 - LRC ADS_BG ER MasterCard 18-2022","-","220331 - NBAA Dues 000419790.pdf"]
["2022-04-01","Monthly Fee Business Adv Relationship",-29.95,{"$f":"D42+Table1[[#This Row],[Amount]]","v":4029.17},{"$f":"IFERROR(INDEX(Lookup!$B$2:$C$5,MATCH(RIGHT(TRIM(Table1[[#This Row],[Description]]),4),Lookup!$B$2:$B$5,0),2),\"\")","v":""},"AGG",null,null,"-"]
["2022-04-08","EVERMAP COMPANY L 04/05 PURCHASE CORVALLIS OR DEBIT CARD *0975",-149,{"$f":"D43+Table1[[#This Row],[Amount]]","v":3880.17},{"$f":"IFERROR(INDEX(Lookup!$B$2:$C$5,MATCH(RIGHT(TRIM(Table1[[#This Row],[Description]]),4),Lookup!$B$2:$B$5,0),2),\"\")","v":"HEA"},"AGG",null,null,null,"HEA AGG ER 01-2022 DebitCardRecon"]
["2022-04-13","EVERMAP COMPANY L 04/05 PURCHASE CORVALLIS OR DEBIT CARD *7411",-149,{"$f":"D44+Table1[[#This Row],[Amount]]","v":3731.17},{"$f":"IFERROR(INDEX(Lookup!$B$2:$C$5,MATCH(RIGHT(TRIM(Table1[[#This Row],[Description]]),4),Lookup!$B$2:$B$5,0),2),\"\")","v":"LRC"},"AGG",null,"221227 - LRC ADS_BG ER MasterCard 18-2022","-","220405 - Evermap PDF Tool W-48699.pdf"]
["2022-04-14","STAMPS.COM 04/14 PURCHASE 855-608-2677 CA DEBIT CARD *7411",-17.989999999999998,{"$f":"D45+Table1[[#This Row],[Amount]]","v":3713.1800000000003},{"$f":"IFERROR(INDEX(Lookup!$B$2:$C$5,MATCH(RIGHT(TRIM(Table1[[#This Row],[Description]]),4),Lookup!$B$2:$B$5,0),2),\"\")","v":"LRC"},"AGG","Stamps","220624 - LRC ADS_BG ER Mastercard 10-2022","-","220416 - Stamps dot com.pdf"]
["2022-04-19","MAILCHIMP *MISC 04/18 PURCHASE MAILCHIMP.COM GA DEBIT CARD *7411",-11.62,{"$f":"D46+Table1[[#This Row],[Amount]]","v":3701.5600000000004},{"$f":"IFERROR(INDEX(Lookup!$B$2:$C$5,MATCH(RIGHT(TRIM(Table1[[#This Row],[Description]]),4),Lookup!$B$2:$B$5,0),2),\"\")","v":"LRC"},"AGG","Mailchimp","220624 - LRC ADS_BG ER Mastercard 10-2022","-","220418 - AGG - Mailchimp Essentials MC15490450.pdf"]
["2022-04-20","PEREGRINE AVIONI DES:QUICKBOOKS ID:375020979 INDN:AVIAGLOBAL GROUP, LLC CO ID:1722616653 PPD",3557.1,{"$f":"D47+Table1[[#This Row],[Amount]]","v":7258.66},{"$f":"IFERROR(INDEX(Lookup!$B$2:$C$5,MATCH(RIGHT(TRIM(Table1[[#This Row],[Description]]),4),Lookup!$B$2:$B$5,0),2),\"\")","v":""},"Peregrine"]
["2022-04-20","MailChimp 04/20 PURCHASE Atlanta GA DEBIT CARD *7411",-59,{"$f":"D48+Table1[[#This Row],[Amount]]","v":7199.66},{"$f":"IFERROR(INDEX(Lookup!$B$2:$C$5,MATCH(RIGHT(TRIM(Table1[[#This Row],[Description]]),4),Lookup!$B$2:$B$5,0),2),\"\")","v":"LRC"},"Peregrine","Mailchimp","220624 - LRC ADS_BG ER Peregrine Billable 09-2022","011-22","220420 - Peregrine - Mailchimp Essentials MC15506606.pdf"]
["2022-04-22","TRANSFER AVIAGLOBAL GROUP, LL:ADS-B Global LLC Confirmation# 1763915441",-2000,{"$f":"D49+Table1[[#This Row],[Amount]]","v":5199.66},{"$f":"IFERROR(INDEX(Lookup!$B$2:$C$5,MATCH(RIGHT(TRIM(Table1[[#This Row],[Description]]),4),Lookup!$B$2:$B$5,0),2),\"\")","v":""}]
["2022-04-22","TRANSFER AVIAGLOBAL GROUP, LL:Forrest Colliver Confirmation# 0663925416",-2000,{"$f":"D50+Table1[[#This Row],[Amount]]","v":3199.66},{"$f":"IFERROR(INDEX(Lookup!$B$2:$C$5,MATCH(RIGHT(TRIM(Table1[[#This Row],[Description]]),4),Lookup!$B$2:$B$5,0),2),\"\")","v":""}]
["2022-04-22","Online Banking Transfer Conf# iuvu5ty24; AERO BUSINESS DEVELOPEMENT LLC",-2000,{"$f":"D51+Table1[[#This Row],[Amount]]","v":1199.6599999999999},{"$f":"IFERROR(INDEX(Lookup!$B$2:$C$5,MATCH(RIGHT(TRIM(Table1[[#This Row],[Description]]),4),Lookup!$B$2:$B$5,0),2),\"\")","v":""}]
["2022-04-25","External transfer fee - 3 Day - 04/22/2022 Confirmation: 384618918",-1,{"$f":"D52+Table1[[#This Row],[Amount]]","v":1198.6599999999999},{"$f":"IFERROR(INDEX(Lookup!$B$2:$C$5,MATCH(RIGHT(TRIM(Table1[[#This Row],[Description]]),4),Lookup!$B$2:$B$5,0),2),\"\")","v":""},"AGG",null,null,"-"]
["2022-04-25","External transfer fee - 3 Day - 04/22/2022 Confirmation: 384619226",-1,{"$f":"D53+Table1[[#This Row],[Amount]]","v":1197.6599999999999},{"$f":"IFERROR(INDEX(Lookup!$B$2:$C$5,MATCH(RIGHT(TRIM(Table1[[#This Row],[Description]]),4),Lookup!$B$2:$B$5,0),2),\"\")","v":""},"AGG",null,null,"-"]
["2022-05-02","Monthly Fee Business Adv Relationship",-29.95,{"$f":"D54+Table1[[#This Row],[Amount]]","v":1167.7099999999998},{"$f":"IFERROR(INDEX(Lookup!$B$2:$C$5,MATCH(RIGHT(TRIM(Table1[[#This Row],[Description]]),4),Lookup!$B$2:$B$5,0),2),\"\")","v":""},"AGG",null,null,"-"]
["2022-05-16","STAMPS.COM 05/14 PURCHASE 855-608-2677 CA DEBIT CARD *7411",-17.989999999999998,{"$f":"D55+Table1[[#This Row],[Amount]]","v":1149.7199999999998},{"$f":"IFERROR(INDEX(Lookup!$B$2:$C$5,MATCH(RIGHT(TRIM(Table1[[#This Row],[Description]]),4),Lookup!$B$2:$B$5,0),2),\"\")","v":"LRC"},"AGG","Stamps","220624 - LRC ADS_BG ER Mastercard 10-2022","-","220516 - Stamps dot com.pdf"]
["2022-05-19","MAILCHIMP *MISC 05/18 PURCHASE MAILCHIMP.COM GA DEBIT CARD *7411",-11.62,{"$f":"D56+Table1[[#This Row],[Amount]]","v":1138.0999999999999},{"$f":"IFERROR(INDEX(Lookup!$B$2:$C$5,MATCH(RIGHT(TRIM(Table1[[#This Row],[Description]]),4),Lookup!$B$2:$B$5,0),2),\"\")","v":"LRC"},"AGG","Mailchimp","220624 - LRC ADS_BG ER Mastercard 10-2022","-","220518 - AGG - Mailchimp Essentials MC15724938.pdf"]
["2022-05-20","MailChimp 05/20 PURCHASE Atlanta GA DEBIT CARD *7411",-59,{"$f":"D57+Table1[[#This Row],[Amount]]","v":1079.0999999999999},{"$f":"IFERROR(INDEX(Lookup!$B$2:$C$5,MATCH(RIGHT(TRIM(Table1[[#This Row],[Description]]),4),Lookup!$B$2:$B$5,0),2),\"\")","v":"LRC"},"Peregrine","Mailchimp","220624 - LRC ADS_BG ER Peregrine Billable 09-2022","011-22","220520 - Peregrine - Mailchimp Essentials MC15741014.pdf"]
["2022-06-01","Monthly Fee Business Adv Relationship",-29.95,{"$f":"D58+Table1[[#This Row],[Amount]]","v":1049.1499999999999},{"$f":"IFERROR(INDEX(Lookup!$B$2:$C$5,MATCH(RIGHT(TRIM(Table1[[#This Row],[Description]]),4),Lookup!$B$2:$B$5,0),2),\"\")","v":""},"AGG",null,null,"-"]
["2022-06-06","DMARCIAN* DMARCIA 06/04 PURCHASE BREVARD NC DEBIT CARD *7429",-239.88,{"$f":"D59+Table1[[#This Row],[Amount]]","v":809.26999999999987},{"$f":"IFERROR(INDEX(Lookup!$B$2:$C$5,MATCH(RIGHT(TRIM(Table1[[#This Row],[Description]]),4),Lookup!$B$2:$B$5,0),2),\"\")","v":"FWC"},"AGG",null,"221201 - FWC ER Mastercard Dec-2022","-","AGG - DMARCian invoice_50733.pdf"]
["2022-06-08","DREAMSTIME.COM 06/07 PURCHASE BRENTWOOD TN DEBIT CARD *7411",-16.989999999999998,{"$f":"D60+Table1[[#This Row],[Amount]]","v":792.27999999999986},{"$f":"IFERROR(INDEX(Lookup!$B$2:$C$5,MATCH(RIGHT(TRIM(Table1[[#This Row],[Description]]),4),Lookup!$B$2:$B$5,0),2),\"\")","v":"LRC"},"Peregrine",null,"220624 - LRC ADS_BG ER Peregrine Billable 09-2022","011-22","220607 - Dreamtime LLC 23829472.pdf"]
["2022-06-08","DREAMSTIME.COM 06/07 PURCHASE BRENTWOOD TN DEBIT CARD *7411",-1,{"$f":"D61+Table1[[#This Row],[Amount]]","v":791.27999999999986},{"$f":"IFERROR(INDEX(Lookup!$B$2:$C$5,MATCH(RIGHT(TRIM(Table1[[#This Row],[Description]]),4),Lookup!$B$2:$B$5,0),2),\"\")","v":"LRC"},"Peregrine",null,"220624 - LRC ADS_BG ER Peregrine Billable 09-2022","011-22","220607 - Dreamtime LLC 23829472.pdf"]
["2022-06-14","STAMPS.COM 06/14 PURCHASE 855-608-2677 CA DEBIT CARD *7411",-17.989999999999998,{"$f":"D62+Table1[[#This Row],[Amount]]","v":773.28999999999985},{"$f":"IFERROR(INDEX(Lookup!$B$2:$C$5,MATCH(RIGHT(TRIM(Table1[[#This Row],[Description]]),4),Lookup!$B$2:$B$5,0),2),\"\")","v":"LRC"},"AGG","Stamps","220624 - LRC ADS_BG ER Mastercard 10-2022","-","220616 - Stamps dot com.pdf"]
["2022-06-21","MailChimp 06/20 PURCHASE Atlanta GA DEBIT CARD *7411",-59,{"$f":"D63+Table1[[#This Row],[Amount]]","v":714.28999999999985},{"$f":"IFERROR(INDEX(Lookup!$B$2:$C$5,MATCH(RIGHT(TRIM(Table1[[#This Row],[Description]]),4),Lookup!$B$2:$B$5,0),2),\"\")","v":"LRC"},"Peregrine","Mailchimp","220624 - LRC ADS_BG ER Peregrine Billable 09-2022","011-22","220620 - Peregrine - Mailchimp Essentials MC15971334.pdf"]
["2022-06-21","MAILCHIMP *MISC 06/18 PURCHASE MAILCHIMP.COM GA DEBIT CARD *7411",-11.62,{"$f":"D64+Table1[[#This Row],[Amount]]","v":702.66999999999985},{"$f":"IFERROR(INDEX(Lookup!$B$2:$C$5,MATCH(RIGHT(TRIM(Table1[[#This Row],[Description]]),4),Lookup!$B$2:$B$5,0),2),\"\")","v":"LRC"},"AGG","Mailchimp","220624 - LRC ADS_BG ER Mastercard 10-2022","-","220618 - AGG - Mailchimp Essentials MC15956138.pdf"]
["2022-06-21","ELEMENTOR 06/20 PURCHASE WILMINGTON DE DEBIT CARD *7429",-49,{"$f":"D65+Table1[[#This Row],[Amount]]","v":653.66999999999985},{"$f":"IFERROR(INDEX(Lookup!$B$2:$C$5,MATCH(RIGHT(TRIM(Table1[[#This Row],[Description]]),4),Lookup!$B$2:$B$5,0),2),\"\")","v":"FWC"},"AGG",null,"221201 - FWC ER Mastercard Dec-2022","-","220124 - Elementor Receipt 11416195.pdf"]
["2022-06-21","REALLY-SIMPLE-SSL 06/20 PURCHASE GRONINGEN DEBIT CARD *7429",-23.2,{"$f":"D66+Table1[[#This Row],[Amount]]","v":630.4699999999998},{"$f":"IFERROR(INDEX(Lookup!$B$2:$C$5,MATCH(RIGHT(TRIM(Table1[[#This Row],[Description]]),4),Lookup!$B$2:$B$5,0),2),\"\")","v":"FWC"},"AGG",null,"221201 - FWC ER Mastercard Dec-2022","-","AGG - ReallySimple SSL Receipt 2022-13884.pdf"]
["2022-06-21","COMPLIANZ-GDPR-PR 06/20 PURCHASE GRONINGEN DEBIT CARD *7429",-45,{"$f":"D67+Table1[[#This Row],[Amount]]","v":585.4699999999998},{"$f":"IFERROR(INDEX(Lookup!$B$2:$C$5,MATCH(RIGHT(TRIM(Table1[[#This Row],[Description]]),4),Lookup!$B$2:$B$5,0),2),\"\")","v":"FWC"},"AGG",null,"221201 - FWC ER Mastercard Dec-2022","-","220125 - Complianz Invoice 2022-0745.pdf"]
["2022-06-21","INTERNATIONAL TRANSACTION FEE 06/20 COMPLIANZ-GDPR-PR GRONINGEN DEBIT CARD *7429",-1.35,{"$f":"D68+Table1[[#This Row],[Amount]]","v":584.11999999999978},{"$f":"IFERROR(INDEX(Lookup!$B$2:$C$5,MATCH(RIGHT(TRIM(Table1[[#This Row],[Description]]),4),Lookup!$B$2:$B$5,0),2),\"\")","v":"FWC"},"AGG",null,"221201 - FWC ER Mastercard Dec-2022","-",{"$f":"TEXT(Table1[[#This Row],[Date]],\"YYMMDD\")&\" - Intl Transaction Fee - \"&LEFT(RIGHT(Table1[[#This Row],[Description]],LEN(Table1[[#This Row],[Description]])-LEN(\"international transaction fee xx/xx \")),SEARCH(\"DEBIT\",RIGHT(Table1[[#This Row],[Description]],LEN(Table1[[#This Row],[Description]])-LEN(\"international transaction fee xx/xx xx\"))))&\".pdf\"","v":"220621 - Intl Transaction Fee - COMPLIANZ-GDPR-PR GRONINGEN.pdf"}]
["2022-06-21","INTERNATIONAL TRANSACTION FEE 06/20 REALLY-SIMPLE-SSL GRONINGEN DEBIT CARD *7429",-0.7,{"$f":"D69+Table1[[#This Row],[Amount]]","v":583.41999999999973},{"$f":"IFERROR(INDEX(Lookup!$B$2:$C$5,MATCH(RIGHT(TRIM(Table1[[#This Row],[Description]]),4),Lookup!$B$2:$B$5,0),2),\"\")","v":"FWC"},"AGG",null,"221201 - FWC ER Mastercard Dec-2022","-",{"$f":"TEXT(Table1[[#This Row],[Date]],\"YYMMDD\")&\" - Intl Transaction Fee - \"&LEFT(RIGHT(Table1[[#This Row],[Description]],LEN(Table1[[#This Row],[Description]])-LEN(\"international transaction fee xx/xx \")),SEARCH(\"DEBIT\",RIGHT(Table1[[#This Row],[Description]],LEN(Table1[[#This Row],[Description]])-LEN(\"international transaction fee xx/xx xx\"))))&\".pdf\"","v":"220621 - Intl Transaction Fee - REALLY-SIMPLE-SSL GRONINGEN.pdf"}]
["2022-07-01","Monthly Fee Business Adv Relationship",-29.95,{"$f":"D70+Table1[[#This Row],[Amount]]","v":553.46999999999969},{"$f":"IFERROR(INDEX(Lookup!$B$2:$C$5,MATCH(RIGHT(TRIM(Table1[[#This Row],[Description]]),4),Lookup!$B$2:$B$5,0),2),\"\")","v":""},"AGG",null,null,"-"]
["2022-07-08","PEREGRINE AVIONI DES:QUICKBOOKS ID:375020979 INDN:AVIAGLOBAL GROUP, LLC CO ID:1722616653 PPD",3000,{"$f":"D71+Table1[[#This Row],[Amount]]","v":3553.47},{"$f":"IFERROR(INDEX(Lookup!$B$2:$C$5,MATCH(RIGHT(TRIM(Table1[[#This Row],[Description]]),4),Lookup!$B$2:$B$5,0),2),\"\")","v":""},"Peregrine"]
["2022-07-14","STAMPS.COM 07/14 PURCHASE 855-608-2677 CA DEBIT CARD *7411",-17.989999999999998,{"$f":"D72+Table1[[#This Row],[Amount]]","v":3535.48},{"$f":"IFERROR(INDEX(Lookup!$B$2:$C$5,MATCH(RIGHT(TRIM(Table1[[#This Row],[Description]]),4),Lookup!$B$2:$B$5,0),2),\"\")","v":"LRC"},"AGG","Stamps","221020 - LRC ADS_BG ER Mastercard 12-2022","-","220714 - Stamps dot com.pdf"]
["2022-07-19","MAILCHIMP *MISC 07/18 PURCHASE MAILCHIMP.COM GA DEBIT CARD *7411",-11.62,{"$f":"D73+Table1[[#This Row],[Amount]]","v":3523.86},{"$f":"IFERROR(INDEX(Lookup!$B$2:$C$5,MATCH(RIGHT(TRIM(Table1[[#This Row],[Description]]),4),Lookup!$B$2:$B$5,0),2),\"\")","v":"LRC"},"AGG","Mailchimp","221020 - LRC ADS_BG ER Mastercard 12-2022","-","220719 - AGG - Mailchimp Essentials MC16182470.pdf"]
["2022-07-20","MailChimp 07/20 PURCHASE Atlanta GA DEBIT CARD *7411",-59,{"$f":"D74+Table1[[#This Row],[Amount]]","v":3464.86},{"$f":"IFERROR(INDEX(Lookup!$B$2:$C$5,MATCH(RIGHT(TRIM(Table1[[#This Row],[Description]]),4),Lookup!$B$2:$B$5,0),2),\"\")","v":"LRC"},"Peregrine","Mailchimp","221020 - LRC ADS_BG ER Peregrine Billable 13-2022","015-22","220720 - Peregrine - Mailchimp Essentials MC16197922.pdf"]
["2022-08-01","SAE INTERNATIONAL 07/30 PURCHASE 7247764841 PA DEBIT CARD *7411",-120,{"$f":"D75+Table1[[#This Row],[Amount]]","v":3344.86},{"$f":"IFERROR(INDEX(Lookup!$B$2:$C$5,MATCH(RIGHT(TRIM(Table1[[#This Row],[Description]]),4),Lookup!$B$2:$B$5,0),2),\"\")","v":"LRC"},"AGG",null,"221020 - LRC ADS_BG ER Mastercard 12-2022","-","220701 - SAE Auto Renewal.pdf"]
["2022-08-01","Monthly Fee Business Adv Relationship",-29.95,{"$f":"D76+Table1[[#This Row],[Amount]]","v":3314.9100000000003},{"$f":"IFERROR(INDEX(Lookup!$B$2:$C$5,MATCH(RIGHT(TRIM(Table1[[#This Row],[Description]]),4),Lookup!$B$2:$B$5,0),2),\"\")","v":""},"AGG",null,null,"-"]
["2022-08-08","PEREGRINE AVIONI DES:QUICKBOOKS ID:375020979 INDN:AVIAGLOBAL GROUP, LLC CO ID:1722616653 PPD",3000,{"$f":"D77+Table1[[#This Row],[Amount]]","v":6314.91},{"$f":"IFERROR(INDEX(Lookup!$B$2:$C$5,MATCH(RIGHT(TRIM(Table1[[#This Row],[Description]]),4),Lookup!$B$2:$B$5,0),2),\"\")","v":""},"Peregrine"]
["2022-08-15","STAMPS.COM 08/14 PURCHASE 855-608-2677 CA DEBIT CARD *7411",-17.989999999999998,{"$f":"D78+Table1[[#This Row],[Amount]]","v":6296.92},{"$f":"IFERROR(INDEX(Lookup!$B$2:$C$5,MATCH(RIGHT(TRIM(Table1[[#This Row],[Description]]),4),Lookup!$B$2:$B$5,0),2),\"\")","v":"LRC"},"AGG","Stamps","221020 - LRC ADS_BG ER Mastercard 12-2022","-","220815 - Stamps dot com.pdf"]
["2022-08-19","MAILCHIMP *MISC 08/18 PURCHASE MAILCHIMP.COM GA DEBIT CARD *7411",-11.62,{"$f":"D79+Table1[[#This Row],[Amount]]","v":6285.3},{"$f":"IFERROR(INDEX(Lookup!$B$2:$C$5,MATCH(RIGHT(TRIM(Table1[[#This Row],[Description]]),4),Lookup!$B$2:$B$5,0),2),\"\")","v":"LRC"},"AGG","Mailchimp","221020 - LRC ADS_BG ER Mastercard 12-2022","-","220818 - AGG - Mailchimp Essentials MC16405518.pdf"]
["2022-08-22","MailChimp 08/20 PURCHASE Atlanta GA DEBIT CARD *7411",-59,{"$f":"D80+Table1[[#This Row],[Amount]]","v":6226.3},{"$f":"IFERROR(INDEX(Lookup!$B$2:$C$5,MATCH(RIGHT(TRIM(Table1[[#This Row],[Description]]),4),Lookup!$B$2:$B$5,0),2),\"\")","v":"LRC"},"Peregrine","Mailchimp","221020 - LRC ADS_BG ER Peregrine Billable 13-2022","015-22","220820 - Peregrine - Mailchimp Essentials MC16420842.pdf"]
["2022-08-31","PEREGRINE AVIONI DES:QUICKBOOKS ID:375020979 INDN:AVIAGLOBAL GROUP, LLC CO ID:1722616653 PPD",3194.99,{"$f":"D81+Table1[[#This Row],[Amount]]","v":9421.2900000000009},{"$f":"IFERROR(INDEX(Lookup!$B$2:$C$5,MATCH(RIGHT(TRIM(Table1[[#This Row],[Description]]),4),Lookup!$B$2:$B$5,0),2),\"\")","v":""},"Peregrine"]
["2022-09-01","HELICOPTER ASSOCI 08/31 PURCHASE 7036834646 VA DEBIT CARD *7429",-325,{"$f":"D82+Table1[[#This Row],[Amount]]","v":9096.2900000000009},{"$f":"IFERROR(INDEX(Lookup!$B$2:$C$5,MATCH(RIGHT(TRIM(Table1[[#This Row],[Description]]),4),Lookup!$B$2:$B$5,0),2),\"\")","v":"FWC"},"AGG",null,"221201 - FWC ER Mastercard Dec-2022","-","AGG - HAI Receipt- 145241.pdf"]
["2022-09-01","Monthly Fee Business Adv Relationship",-29.95,{"$f":"D83+Table1[[#This Row],[Amount]]","v":9066.34},{"$f":"IFERROR(INDEX(Lookup!$B$2:$C$5,MATCH(RIGHT(TRIM(Table1[[#This Row],[Description]]),4),Lookup!$B$2:$B$5,0),2),\"\")","v":""},"AGG",null,null,"-"]
["2022-09-07","TRANSFER AVIAGLOBAL GROUP, LL:ADS-B Global LLC Confirmation# 0156760934",-2700,{"$f":"D84+Table1[[#This Row],[Amount]]","v":6366.34},{"$f":"IFERROR(INDEX(Lookup!$B$2:$C$5,MATCH(RIGHT(TRIM(Table1[[#This Row],[Description]]),4),Lookup!$B$2:$B$5,0),2),\"\")","v":""}]
["2022-09-07","TRANSFER AVIAGLOBAL GROUP, LL:Forrest Colliver Confirmation# 1556772007",-2700,{"$f":"D85+Table1[[#This Row],[Amount]]","v":3666.34},{"$f":"IFERROR(INDEX(Lookup!$B$2:$C$5,MATCH(RIGHT(TRIM(Table1[[#This Row],[Description]]),4),Lookup!$B$2:$B$5,0),2),\"\")","v":""}]
["2022-09-07","Online Banking Transfer Conf# itu1b5i02; AERO BUSINESS DEVELOPEMENT LLC",-2700,{"$f":"D86+Table1[[#This Row],[Amount]]","v":966.34000000000015},{"$f":"IFERROR(INDEX(Lookup!$B$2:$C$5,MATCH(RIGHT(TRIM(Table1[[#This Row],[Description]]),4),Lookup!$B$2:$B$5,0),2),\"\")","v":""}]
["2022-09-08","External transfer fee - 3 Day - 09/07/2022 Confirmation: 403675046",-1,{"$f":"D87+Table1[[#This Row],[Amount]]","v":965.34000000000015},{"$f":"IFERROR(INDEX(Lookup!$B$2:$C$5,MATCH(RIGHT(TRIM(Table1[[#This Row],[Description]]),4),Lookup!$B$2:$B$5,0),2),\"\")","v":""},"AGG",null,null,"-"]
["2022-09-08","External transfer fee - 3 Day - 09/07/2022 Confirmation: 403675426",-1,{"$f":"D88+Table1[[#This Row],[Amount]]","v":964.34000000000015},{"$f":"IFERROR(INDEX(Lookup!$B$2:$C$5,MATCH(RIGHT(TRIM(Table1[[#This Row],[Description]]),4),Lookup!$B$2:$B$5,0),2),\"\")","v":""},"AGG",null,null,"-"]
["2022-09-14","PEREGRINE AVIONI DES:QUICKBOOKS ID:375020979 INDN:AVIAGLOBAL GROUP, LLC CO ID:1722616653 PPD",3000,{"$f":"D89+Table1[[#This Row],[Amount]]","v":3964.34},{"$f":"IFERROR(INDEX(Lookup!$B$2:$C$5,MATCH(RIGHT(TRIM(Table1[[#This Row],[Description]]),4),Lookup!$B$2:$B$5,0),2),\"\")","v":""},"Peregrine"]
["2022-09-14","STAMPS.COM 09/14 PURCHASE 855-608-2677 CA DEBIT CARD *7411",-17.989999999999998,{"$f":"D90+Table1[[#This Row],[Amount]]","v":3946.3500000000004},{"$f":"IFERROR(INDEX(Lookup!$B$2:$C$5,MATCH(RIGHT(TRIM(Table1[[#This Row],[Description]]),4),Lookup!$B$2:$B$5,0),2),\"\")","v":"LRC"},"AGG","Stamps","221020 - LRC ADS_BG ER Mastercard 12-2022","-","220914 - Stamps dot com.pdf"]
["2022-09-19","MAILCHIMP *MISC 09/18 PURCHASE MAILCHIMP.COM GA DEBIT CARD *7411",-11.62,{"$f":"D91+Table1[[#This Row],[Amount]]","v":3934.7300000000005},{"$f":"IFERROR(INDEX(Lookup!$B$2:$C$5,MATCH(RIGHT(TRIM(Table1[[#This Row],[Description]]),4),Lookup!$B$2:$B$5,0),2),\"\")","v":"LRC"},"AGG","Mailchimp","221020 - LRC ADS_BG ER Mastercard 12-2022","-","220918 - AGG - Mailchimp Essentials MC16627250.pdf"]
["2022-09-20","MailChimp 09/20 PURCHASE Atlanta GA DEBIT CARD *7411",-59,{"$f":"D92+Table1[[#This Row],[Amount]]","v":3875.7300000000005},{"$f":"IFERROR(INDEX(Lookup!$B$2:$C$5,MATCH(RIGHT(TRIM(Table1[[#This Row],[Description]]),4),Lookup!$B$2:$B$5,0),2),\"\")","v":"LRC"},"Peregrine","Mailchimp","221020 - LRC ADS_BG ER Peregrine Billable 13-2022","015-22","220920 - Peregrine - Mailchimp Essentials MC16642305.pdf"]
["2022-10-03","Monthly Fee Business Adv Relationship",-29.95,{"$f":"D93+Table1[[#This Row],[Amount]]","v":3845.7800000000007},{"$f":"IFERROR(INDEX(Lookup!$B$2:$C$5,MATCH(RIGHT(TRIM(Table1[[#This Row],[Description]]),4),Lookup!$B$2:$B$5,0),2),\"\")","v":""},"AGG",null,null,"-"]
["2022-10-06","DOWNLOAD-MONITOR. 10/06 PURCHASE BUCURESTI DEBIT CARD *7429",-159,{"$f":"D94+Table1[[#This Row],[Amount]]","v":3686.7800000000007},{"$f":"IFERROR(INDEX(Lookup!$B$2:$C$5,MATCH(RIGHT(TRIM(Table1[[#This Row],[Description]]),4),Lookup!$B$2:$B$5,0),2),\"\")","v":"FWC"},"Peregrine",null,"221201 - FWC ER Peregrine Billable EOY-2022","018-22","Peregrine - Download Monitor Invoice-3198.pdf"]
["2022-10-06","INTERNATIONAL TRANSACTION FEE 10/06 DOWNLOAD-MONITOR. BUCURESTI DEBIT CARD *7429",-4.7699999999999996,{"$f":"D95+Table1[[#This Row],[Amount]]","v":3682.0100000000007},{"$f":"IFERROR(INDEX(Lookup!$B$2:$C$5,MATCH(RIGHT(TRIM(Table1[[#This Row],[Description]]),4),Lookup!$B$2:$B$5,0),2),\"\")","v":"FWC"},"Peregrine",null,"221201 - FWC ER Peregrine Billable EOY-2022","018-22","221006 - INTERNATIONAL TRANSACTION FEE DOWNLOAD-MONITOR"]
["2022-10-17","STAMPS.COM 10/14 PURCHASE 855-608-2677 CA DEBIT CARD *7411",-17.989999999999998,{"$f":"D96+Table1[[#This Row],[Amount]]","v":3664.0200000000009},{"$f":"IFERROR(INDEX(Lookup!$B$2:$C$5,MATCH(RIGHT(TRIM(Table1[[#This Row],[Description]]),4),Lookup!$B$2:$B$5,0),2),\"\")","v":"LRC"},"AGG","Stamps","221020 - LRC ADS_BG ER Mastercard 12-2022","-","221017 - Stamps dot com.pdf"]
["2022-10-19","MAILCHIMP *MISC 10/18 PURCHASE MAILCHIMP.COM GA DEBIT CARD *7411",-11.62,{"$f":"D97+Table1[[#This Row],[Amount]]","v":3652.400000000001},{"$f":"IFERROR(INDEX(Lookup!$B$2:$C$5,MATCH(RIGHT(TRIM(Table1[[#This Row],[Description]]),4),Lookup!$B$2:$B$5,0),2),\"\")","v":"LRC"},"AGG","Mailchimp","221020 - LRC ADS_BG ER Mastercard 12-2022","-","221018 - AGG - Mailchimp Essentials MC16858121.pdf"]
["2022-10-20","MailChimp 10/20 PURCHASE Atlanta GA DEBIT CARD *7411",-59,{"$f":"D98+Table1[[#This Row],[Amount]]","v":3593.400000000001},{"$f":"IFERROR(INDEX(Lookup!$B$2:$C$5,MATCH(RIGHT(TRIM(Table1[[#This Row],[Description]]),4),Lookup!$B$2:$B$5,0),2),\"\")","v":"LRC"},"Peregrine","Mailchimp","221020 - LRC ADS_BG ER Peregrine Billable 13-2022","015-22","221020 - Peregrine - Mailchimp Essentials MC16642305.pdf"]
["2022-10-31","NATIONAL BUS AVIA 10/28 PURCHASE WASHINGTON DC DEBIT CARD *7411",-52.5,{"$f":"D99+Table1[[#This Row],[Amount]]","v":3540.900000000001},{"$f":"IFERROR(INDEX(Lookup!$B$2:$C$5,MATCH(RIGHT(TRIM(Table1[[#This Row],[Description]]),4),Lookup!$B$2:$B$5,0),2),\"\")","v":"LRC"},"AGG",null,"221201 - LRC ADS_BG ER Mastercard 15-2022","-","221028 - NBAA Affilliated Prof Membership 000430626.pdf"]
["2022-11-01","Monthly Fee Business Adv Relationship",-29.95,{"$f":"D100+Table1[[#This Row],[Amount]]","v":3510.9500000000012},{"$f":"IFERROR(INDEX(Lookup!$B$2:$C$5,MATCH(RIGHT(TRIM(Table1[[#This Row],[Description]]),4),Lookup!$B$2:$B$5,0),2),\"\")","v":""},"AGG",null,null,"-"]
["2022-11-02","PEREGRINE AVIONI DES:QUICKBOOKS ID:375020979 INDN:AVIAGLOBAL GROUP, LLC CO ID:1722616653 PPD",2000,{"$f":"D101+Table1[[#This Row],[Amount]]","v":5510.9500000000007},{"$f":"IFERROR(INDEX(Lookup!$B$2:$C$5,MATCH(RIGHT(TRIM(Table1[[#This Row],[Description]]),4),Lookup!$B$2:$B$5,0),2),\"\")","v":""},"Peregrine"]
["2022-11-14","STAMPS.COM 11/13 PURCHASE 855-608-2677 TX DEBIT CARD *7411",-17.989999999999998,{"$f":"D102+Table1[[#This Row],[Amount]]","v":5492.9600000000009},{"$f":"IFERROR(INDEX(Lookup!$B$2:$C$5,MATCH(RIGHT(TRIM(Table1[[#This Row],[Description]]),4),Lookup!$B$2:$B$5,0),2),\"\")","v":"LRC"},"AGG","Stamps","221201 - LRC ADS_BG ER Mastercard 15-2022","-","221114 - Stamps dot com.pdf"]
["2022-11-21","MAILCHIMP *MISC 11/18 PURCHASE MAILCHIMP.COM GA DEBIT CARD *7411",-11.62,{"$f":"D103+Table1[[#This Row],[Amount]]","v":5481.3400000000011},{"$f":"IFERROR(INDEX(Lookup!$B$2:$C$5,MATCH(RIGHT(TRIM(Table1[[#This Row],[Description]]),4),Lookup!$B$2:$B$5,0),2),\"\")","v":"LRC"},"AGG","Mailchimp","221201 - LRC ADS_BG ER Mastercard 15-2022","-","221118 - AGG - Mailchimp Essentials MC17077641.pdf"]
["2022-11-21","MailChimp 11/20 PURCHASE Atlanta GA DEBIT CARD *7411",-59,{"$f":"D104+Table1[[#This Row],[Amount]]","v":5422.3400000000011},{"$f":"IFERROR(INDEX(Lookup!$B$2:$C$5,MATCH(RIGHT(TRIM(Table1[[#This Row],[Description]]),4),Lookup!$B$2:$B$5,0),2),\"\")","v":"LRC"},"Peregrine","Mailchimp","221201 - LRC ADS_BG ER Peregrine Billable 14-2022","017-22","221120 - Peregrine - Mailchimp Essentials MC17092309.pdf"]
["2022-11-21","INMOTIONHOSTING.C 11/20 PURCHASE 888-3214678 CA DEBIT CARD *7429",-119.99,{"$f":"D105+Table1[[#This Row],[Amount]]","v":5302.3500000000013},{"$f":"IFERROR(INDEX(Lookup!$B$2:$C$5,MATCH(RIGHT(TRIM(Table1[[#This Row],[Description]]),4),Lookup!$B$2:$B$5,0),2),\"\")","v":"FWC"},"AGG",null,"221201 - FWC ER Mastercard Dec-2022","-","AGG - InMotion Hosting Receipt - IMH-314-144898-100.pdf"]
["2022-11-28","INMOTIONHOSTING.C 11/25 PURCHASE 888-3214678 CA DEBIT CARD *7429",-479.85,{"$f":"D106+Table1[[#This Row],[Amount]]","v":4822.5000000000009},{"$f":"IFERROR(INDEX(Lookup!$B$2:$C$5,MATCH(RIGHT(TRIM(Table1[[#This Row],[Description]]),4),Lookup!$B$2:$B$5,0),2),\"\")","v":"FWC"},"Peregrine",null,"221201 - FWC ER Peregrine Billable EOY-2022","018-22","Peregrine - InMotion Hosting - Receipt - IMH-414-1451828-5.pdf"]
["2022-12-01","Monthly Fee Business Adv Relationship",-29.95,{"$f":"D107+Table1[[#This Row],[Amount]]","v":4792.5500000000011},{"$f":"IFERROR(INDEX(Lookup!$B$2:$C$5,MATCH(RIGHT(TRIM(Table1[[#This Row],[Description]]),4),Lookup!$B$2:$B$5,0),2),\"\")","v":""},"AGG",null,null,"-"]
["2022-12-09","PEREGRINE AVIONI DES:QUICKBOOKS ID:375020979 INDN:AVIAGLOBAL GROUP, LLC CO ID:1722616653 PPD",2000,{"$f":"D108+Table1[[#This Row],[Amount]]","v":6792.5500000000011},{"$f":"IFERROR(INDEX(Lookup!$B$2:$C$5,MATCH(RIGHT(TRIM(Table1[[#This Row],[Description]]),4),Lookup!$B$2:$B$5,0),2),\"\")","v":""},"Peregrine"]
["2022-12-14","STAMPS.COM 12/13 PURCHASE 855-608-2677 TX DEBIT CARD *7411",-17.989999999999998,{"$f":"D109+Table1[[#This Row],[Amount]]","v":6774.5600000000013},{"$f":"IFERROR(INDEX(Lookup!$B$2:$C$5,MATCH(RIGHT(TRIM(Table1[[#This Row],[Description]]),4),Lookup!$B$2:$B$5,0),2),\"\")","v":"LRC"},"AGG","Stamps","221201 - LRC ADS_BG ER Mastercard 15-2022","-","221214 - Stamps dot com.pdf"]
["2022-12-19","INMOTIONHOSTING.C 12/16 PURCHASE 888-3214678 CA DEBIT CARD *7429",-39.58,{"$f":"D110+Table1[[#This Row],[Amount]]","v":6734.9800000000014},{"$f":"IFERROR(INDEX(Lookup!$B$2:$C$5,MATCH(RIGHT(TRIM(Table1[[#This Row],[Description]]),4),Lookup!$B$2:$B$5,0),2),\"\")","v":"FWC"},"AGG",null,"221226 - FWC ER Mastercard EOY-2022","-","220220 - InMotion Hosting - IMH-314-144898-104.pdf"]
["2022-12-19","MAILCHIMP *MISC 12/18 PURCHASE MAILCHIMP.COM GA DEBIT CARD *7411",-11.62,{"$f":"D111+Table1[[#This Row],[Amount]]","v":6723.3600000000015},{"$f":"IFERROR(INDEX(Lookup!$B$2:$C$5,MATCH(RIGHT(TRIM(Table1[[#This Row],[Description]]),4),Lookup!$B$2:$B$5,0),2),\"\")","v":"LRC"},"AGG","Mailchimp","221223 - LRC ADS_BG ER Mastercard 16-2022","-","221218 - AGG - Mailchimp Essentials MC17295205.pdf"]
["2022-12-20","PEREGRINE AVIONI DES:QUICKBOOKS ID:375020979 INDN:AVIAGLOBAL GROUP, LLC CO ID:1722616653 PPD",7063.61,{"$f":"D112+Table1[[#This Row],[Amount]]","v":13786.970000000001},{"$f":"IFERROR(INDEX(Lookup!$B$2:$C$5,MATCH(RIGHT(TRIM(Table1[[#This Row],[Description]]),4),Lookup!$B$2:$B$5,0),2),\"\")","v":""},"Peregrine"]
["2022-12-20","MailChimp 12/20 PURCHASE Atlanta GA DEBIT CARD *7411",-59,{"$f":"D113+Table14[[#This Row],[Amount]]","v":13727.970000000001},{"$f":"IFERROR(INDEX(Lookup!$B$2:$C$5,MATCH(RIGHT(TRIM(Table14[[#This Row],[Description]]),4),Lookup!$B$2:$B$5,0),2),\"\")","v":"LRC"},"Peregrine","Mailchimp","221223 - LRC ADS_BG ER Peregrine Billable 17-2022","004-23","221220 - Peregrine - Mailchimp Essentials MC17309841.pdf"]
["2022-12-22","TRANSFER AVIAGLOBAL GROUP, LL:ADS-B Global LLC Confirmation# 0273896038",-3300,{"$f":"D114+Table14[[#This Row],[Amount]]","v":10427.970000000001},{"$f":"IFERROR(INDEX(Lookup!$B$2:$C$5,MATCH(RIGHT(TRIM(Table14[[#This Row],[Description]]),4),Lookup!$B$2:$B$5,0),2),\"\")","v":""}]
["2022-12-22","TRANSFER AVIAGLOBAL GROUP, LL:Forrest Colliver Confirmation# 0273906671",-3300,{"$f":"D115+Table14[[#This Row],[Amount]]","v":7127.9700000000012},{"$f":"IFERROR(INDEX(Lookup!$B$2:$C$5,MATCH(RIGHT(TRIM(Table14[[#This Row],[Description]]),4),Lookup!$B$2:$B$5,0),2),\"\")","v":""}]
["2022-12-22","Online Banking Transfer Conf# fr8bmzdeg; AERO BUSINESS DEVELOPEMENT LLC",-3300,{"$f":"D116+Table14[[#This Row],[Amount]]","v":3827.9700000000012},{"$f":"IFERROR(INDEX(Lookup!$B$2:$C$5,MATCH(RIGHT(TRIM(Table14[[#This Row],[Description]]),4),Lookup!$B$2:$B$5,0),2),\"\")","v":""}]
["2022-12-23","TRANSFER AVIAGLOBAL GROUP, LL:Forrest Colliver Confirmation# 0281150631",-1549.3,{"$f":"D117+Table14[[#This Row],[Amount]]","v":2278.670000000001},{"$f":"IFERROR(INDEX(Lookup!$B$2:$C$5,MATCH(RIGHT(TRIM(Table14[[#This Row],[Description]]),4),Lookup!$B$2:$B$5,0),2),\"\")","v":""}]
["2022-12-23","TRANSFER AVIAGLOBAL GROUP, LL:ADS-B Global LLC Confirmation# 1581367783",-70.62,{"$f":"D118+Table14[[#This Row],[Amount]]","v":2208.0500000000011},{"$f":"IFERROR(INDEX(Lookup!$B$2:$C$5,MATCH(RIGHT(TRIM(Table14[[#This Row],[Description]]),4),Lookup!$B$2:$B$5,0),2),\"\")","v":""}]
["2022-12-23","External transfer fee - 3 Day - 12/22/2022 Confirmation: 418383038",-1,{"$f":"D119+Table14[[#This Row],[Amount]]","v":2207.0500000000011},{"$f":"IFERROR(INDEX(Lookup!$B$2:$C$5,MATCH(RIGHT(TRIM(Table14[[#This Row],[Description]]),4),Lookup!$B$2:$B$5,0),2),\"\")","v":""},"AGG"]
["2022-12-23","External transfer fee - 3 Day - 12/22/2022 Confirmation: 418383332",-1,{"$f":"D120+Table14[[#This Row],[Amount]]","v":2206.0500000000011},{"$f":"IFERROR(INDEX(Lookup!$B$2:$C$5,MATCH(RIGHT(TRIM(Table14[[#This Row],[Description]]),4),Lookup!$B$2:$B$5,0),2),\"\")","v":""},"AGG"]
["2022-12-27","External transfer fee - Next Day - 12/23/2022 Confirmation: 418570494",-5,{"$f":"D121+Table14[[#This Row],[Amount]]","v":2201.0500000000011},{"$f":"IFERROR(INDEX(Lookup!$B$2:$C$5,MATCH(RIGHT(TRIM(Table14[[#This Row],[Description]]),4),Lookup!$B$2:$B$5,0),2),\"\")","v":""},"AGG"]
["2022-12-27","External transfer fee - 3 Day - 12/23/2022 Confirmation: 418577030",-1,{"$f":"D122+Table14[[#This Row],[Amount]]","v":2200.0500000000011},{"$f":"IFERROR(INDEX(Lookup!$B$2:$C$5,MATCH(RIGHT(TRIM(Table14[[#This Row],[Description]]),4),Lookup!$B$2:$B$5,0),2),\"\")","v":""},"AGG"]
["2023-01-03","OWL FOR THUNDERBI 01/02 PURCHASE WIESBADEN DEBIT CARD *7429",-10.7,{"$f":"D123+Table14[[#This Row],[Amount]]","v":2189.3500000000013},"FWC","AE"]
["2023-01-03","Monthly Fee Business Adv Relationship",-29.95,{"$f":"D124+Table14[[#This Row],[Amount]]","v":2159.4000000000015},null,"AGG"]
["2023-01-03","INTERNATIONAL TRANSACTION FEE 01/02 OWL FOR THUNDERBI WIESBADEN DEBIT CARD *7429",-0.32,{"$f":"D125+Table14[[#This Row],[Amount]]","v":2159.0800000000013},"FWC","AE"]
["2023-01-05","PEREGRINE AVIONI DES:QUICKBOOKS ID:375020979 INDN:AVIAGLOBAL GROUP, LLC CO ID:1722616653 PPD",441.97,{"$f":"D126+Table14[[#This Row],[Amount]]","v":2601.0500000000011},null,"Peregrine"]
["2023-01-17","STAMPS.COM 01/14 PURCHASE 855-608-2677 TX DEBIT CARD *7411",-17.989999999999998,{"$f":"D127+Table14[[#This Row],[Amount]]","v":2583.0600000000013},"LRC","AE"]
["2023-01-18","MICHAEL L STUCK C 01/17 PURCHASE SCOTTSDALE AZ DEBIT CARD *0975",-625,{"$f":"D128+Table14[[#This Row],[Amount]]","v":1958.0600000000013},"HEA","AGG"]
["2023-01-19","MAILCHIMP *MISC 01/18 PURCHASE MAILCHIMP.COM GA DEBIT CARD *7411",-13.73,{"$f":"D129+Table14[[#This Row],[Amount]]","v":1944.3300000000013},"LRC","AE",null,null,null,"230118 - AE - Mailchimp Essentials MC17507446.pdf"]
["2023-01-20","Mailchimp 01/20 PURCHASE Atlanta GA DEBIT CARD *7411",-69,{"$f":"D130+Table14[[#This Row],[Amount]]","v":1875.3300000000013},"LRC","Peregrine",null,null,"002-23","230120 - Peregrine - Mailchimp Essentials MC17521714.pdf"]
["2023-01-24","ELEMENTOR 01/24 PURCHASE WILMINGTON DE DEBIT CARD *7429",-49,{"$f":"D131+Table14[[#This Row],[Amount]]","v":1826.3300000000013},"FWC","Peregrine",null,null,"004-23"]
["2023-01-25","REALLY-SIMPLE-SSL 01/24 PURCHASE GRONINGEN DEBIT CARD *7429",-23.2,{"$f":"D132+Table14[[#This Row],[Amount]]","v":1803.1300000000012},"FWC","Peregrine",null,null,"004-23"]
["2023-01-25","COMPLIANZ-GDPR-PR 01/25 PURCHASE GRONINGEN DEBIT CARD *7429",-45,{"$f":"D133+Table14[[#This Row],[Amount]]","v":1758.1300000000012},"FWC","Peregrine",null,null,"004-23"]
["2023-01-25","INTERNATIONAL TRANSACTION FEE 01/25 COMPLIANZ-GDPR-PR GRONINGEN DEBIT CARD *7429",-1.35,{"$f":"D134+Table14[[#This Row],[Amount]]","v":1756.7800000000013},"FWC","Peregrine",null,null,"004-23"]
["2023-01-25","INTERNATIONAL TRANSACTION FEE 01/24 REALLY-SIMPLE-SSL GRONINGEN DEBIT CARD *7429",-0.7,{"$f":"D135+Table14[[#This Row],[Amount]]","v":1756.0800000000013},"FWC","Peregrine",null,null,"004-23"]
["2023-02-01","Monthly Fee Business Adv Relationship",-29.95,{"$f":"D136+Table14[[#This Row],[Amount]]","v":1726.1300000000012},"LRC","AGG"]
["2023-02-14","STAMPS.COM 02/13 PURCHASE 855-608-2677 TX DEBIT CARD *7411",-17.989999999999998,{"$f":"D137+Table14[[#This Row],[Amount]]","v":1708.1400000000012},"LRC","AE"]
["2023-02-15","PEREGRINE AVIONI DES:QUICKBOOKS ID:375020979 INDN:AVIAGLOBAL GROUP, LLC CO ID:1722616653 PPD",2000,{"$f":"D138+Table14[[#This Row],[Amount]]","v":3708.1400000000012},null,"Peregrine"]
["2023-02-21","MAILCHIMP *MISC 02/18 PURCHASE MAILCHIMP.COM GA DEBIT CARD *7411",-13.73,{"$f":"D139+Table14[[#This Row],[Amount]]","v":3694.4100000000012},"LRC","AE"]
["2023-02-21","Mailchimp 02/20 PURCHASE Atlanta GA DEBIT CARD *7411",-69,{"$f":"D140+Table14[[#This Row],[Amount]]","v":3625.4100000000012},"LRC","Peregrine",null,null,"002-23"]
[]
[]
[]
["Date","Description","Amount","Running Bal.","Who","Bill to","Column1","Expense Report?","Invoice","Charge Receipt"]
[null,null,null,null,null,"Peregrine"]
["Date","Description","Amount","Running Bal.","Who","Bill to","Column1","Expense Report?","Invoice","Charge Receipt"]
["2022-01-20","MailChimp 01/20 PURCHASE Atlanta GA DEBIT CARD *7411",-47.69,564.8599999999999,"LRC","Peregrine","Mailchimp","220310 - LRC ADS_BG ER MasterCard Peregrine Billable 03-2022","005-22","220120 - Peregrine - Mailchimp Essentials MC14777938.pdf"]
["2022-01-24","PEREGRINE AVIONI DES:QUICKBOOKS ID:375020979 INDN:AVIAGLOBAL GROUP, LLC CO ID:1722616653 PPD",1500,2064.8599999999997,"","Peregrine"]
["2022-01-24","SOFTACULOUS 01/24 PURCHASE ABU DHABI DEBIT CARD *7429",-24,2040.8599999999997,"FWC","Peregrine","Security","221221 - FWC ER Peregrine Billable 1Q22","020-22","220124 - Softaculous Loginizer 783150.pdf"]
["2022-01-24","ELEMENTOR 01/24 PURCHASE WILMINGTON DE DEBIT CARD *7429",-49,1991.8599999999997,"FWC","Peregrine","CMS Editor","221221 - FWC ER Peregrine Billable 1Q22","020-22","220124 - Elementor Pro.pdf"]
["2022-01-24","INTERNATIONAL TRANSACTION FEE 01/24 SOFTACULOUS ABU DHABI DEBIT CARD *7429",-0.72,1991.1399999999996,"FWC","Peregrine","Fee","221221 - FWC ER Peregrine Billable 1Q22","020-22","220124 - Intl Transaction Fee - SOFTACULOUS ABU DHABI.pdf"]
["2022-01-25","REALLY-SIMPLE-SSL 01/24 PURCHASE GRONINGEN DEBIT CARD *7429",-23.2,1967.9399999999996,"FWC","Peregrine","SSL Cert Manager","221221 - FWC ER Peregrine Billable 1Q22","020-22","220124 - Really Simple SSL 2022-1993.pdf"]
["2022-01-25","COMPLIANZ-GDPR-PR 01/25 PURCHASE GRONINGEN DEBIT CARD *7429",-45,1922.9399999999996,"FWC","Peregrine","Privacy Compliance","221221 - FWC ER Peregrine Billable 1Q22","020-22","220125 - Complianz 2022-0745.pdf"]
["2022-01-25","INTERNATIONAL TRANSACTION FEE 01/25 COMPLIANZ-GDPR-PR GRONINGEN DEBIT CARD *7429",-1.35,1921.5899999999997,"FWC","Peregrine","Fee","221221 - FWC ER Peregrine Billable 1Q22","020-22","220125 - Intl Transaction Fee - COMPLIANZ-GDPR-PR GRONINGEN.pdf"]
["2022-01-25","INTERNATIONAL TRANSACTION FEE 01/24 REALLY-SIMPLE-SSL GRONINGEN DEBIT CARD *7429",-0.7,1920.8899999999996,"FWC","Peregrine","Fee","221221 - FWC ER Peregrine Billable 1Q22","020-22","220125 - Intl Transaction Fee - REALLY-SIMPLE-SSL GRONINGEN.pdf"]
["2022-02-14","JET NET 02/10 PURCHASE 315-797-4420 NY DEBIT CARD *7411",-850,996.55999999999949,"LRC","Peregrine",null,"220211 ‐ LRC ADS_BG ER MasterCard Peregrine Billable 02a‐2022","003-22","Executed Custom Special Report Project Agreement AviaGlobal Group LLC[84].pdf"]
["2022-02-18","PEREGRINE AVIONI DES:QUICKBOOKS ID:375020979 INDN:AVIAGLOBAL GROUP, LLC CO ID:1722616653 PPD",1500,2496.5599999999995,"","Peregrine"]
["2022-02-22","MailChimp 02/20 PURCHASE Atlanta GA DEBIT CARD *7411",-59,2437.5599999999995,"LRC","Peregrine","Mailchimp","220310 - LRC ADS_BG ER MasterCard Peregrine Billable 03-2022","005-22","220220 - Peregrine - Mailchimp Essentials MC15026518.pdf"]
["2022-03-15","Amazon.com*1N91P5 03/14 PURCHASE Amzn.com/bill WA DEBIT CARD *7411",-66.66,2329.33,"LRC","Peregrine",null,"220310 - LRC ADS_BG ER MasterCard Peregrine Billable 03-2022","006-22","Amazon.com - Order 111-7793024-7025007.pdf"]
["2022-03-15","STAMPS.COM 03/14 PURCHASE 855-608-2677 CA DEBIT CARD *7411",-30.12,2299.21,"LRC","Peregrine","Stamps","220310 - LRC ADS_BG ER MasterCard Peregrine Billable 03-2022","006-22","Stamps dot com st2385760.pdf"]
["2022-03-16","MONSTERINSIGHTS W 03/16 PURCHASE PALM BEACH GA FL DEBIT CARD *7429",-199,2006.92,"FWC","Peregrine","Web Traffic","221221 - FWC ER Peregrine Billable 1Q22","020-22","220316 - Monster Insights Invoice 543619.pdf"]
["2022-03-16","SEMPER PLUGINS AI 03/16 PURCHASE PALM BEACH GA FL DEBIT CARD *7429",-99,1907.92,"FWC","Peregrine","SEO Plugin","221221 - FWC ER Peregrine Billable 1Q22","020-22","220315 - aioseo Invoice 80192.pdf"]
["2022-03-17","PEREGRINE AVIONI DES:QUICKBOOKS ID:375020979 INDN:AVIAGLOBAL GROUP, LLC CO ID:1722616653 PPD",3850,5756.92,"","Peregrine"]
["2022-03-18","USPS STAMPS ENDIC 03/17 PURCHASE 888-434-0055 DC DEBIT CARD *7411",-100,5656.92,"LRC","Peregrine","Stamps","220310 - LRC ADS_BG ER MasterCard Peregrine Billable 03-2022","006-22","Stamps dot com Postage orders.pdf"]
["2022-03-18","USPS STAMPS ENDIC 03/17 PURCHASE 888-434-0055 DC DEBIT CARD *7411",-50,5606.92,"LRC","Peregrine","Stamps","220310 - LRC ADS_BG ER MasterCard Peregrine Billable 03-2022","006-22","Stamps dot com Postage orders.pdf"]
["2022-03-18","AMZN Mktp US*1N5B 03/17 PURCHASE Amzn.com/bill WA DEBIT CARD *7411",-29.63,5577.29,"LRC","Peregrine",null,"220310 - LRC ADS_BG ER MasterCard Peregrine Billable 03-2022","006-22","Amazon.com - Order 114-5434031-3824202.pdf"]
["2022-03-21","MailChimp 03/20 PURCHASE Atlanta GA DEBIT CARD *7411",-59,5518.29,"LRC","Peregrine","Mailchimp","220310 - LRC ADS_BG ER MasterCard Peregrine Billable 03-2022","006-22","220320 - Peregrine - Mailchimp Essentials MC15268026.pdf"]
["2022-03-24","USPS STAMPS ENDIC 03/23 PURCHASE 888-434-0055 DC DEBIT CARD *7411",-25,5385.12,"LRC","Peregrine","Stamps","220310 - LRC ADS_BG ER MasterCard Peregrine Billable 03-2022","006-22","Stamps dot com Postage orders.pdf"]
["2022-04-20","PEREGRINE AVIONI DES:QUICKBOOKS ID:375020979 INDN:AVIAGLOBAL GROUP, LLC CO ID:1722616653 PPD",3557.1,7258.66,"","Peregrine"]
["2022-04-20","MailChimp 04/20 PURCHASE Atlanta GA DEBIT CARD *7411",-59,7199.66,"LRC","Peregrine","Mailchimp","220624 - LRC ADS_BG ER Peregrine Billable 09-2022","011-22","220420 - Peregrine - Mailchimp Essentials MC15506606.pdf"]
["2022-05-20","MailChimp 05/20 PURCHASE Atlanta GA DEBIT CARD *7411",-59,1079.0999999999999,"LRC","Peregrine","Mailchimp","220624 - LRC ADS_BG ER Peregrine Billable 09-2022","011-22","220520 - Peregrine - Mailchimp Essentials MC15741014.pdf"]
["2022-06-08","DREAMSTIME.COM 06/07 PURCHASE BRENTWOOD TN DEBIT CARD *7411",-16.989999999999998,792.27999999999986,"LRC","Peregrine",null,"220624 - LRC ADS_BG ER Peregrine Billable 09-2022","011-22","220607 - Dreamtime LLC 23829472.pdf"]
["2022-06-08","DREAMSTIME.COM 06/07 PURCHASE BRENTWOOD TN DEBIT CARD *7411",-1,791.27999999999986,"LRC","Peregrine",null,"220624 - LRC ADS_BG ER Peregrine Billable 09-2022","011-22","220607 - Dreamtime LLC 23829472.pdf"]
["2022-06-21","MailChimp 06/20 PURCHASE Atlanta GA DEBIT CARD *7411",-59,714.28999999999985,"LRC","Peregrine","Mailchimp","220624 - LRC ADS_BG ER Peregrine Billable 09-2022","011-22","220620 - Peregrine - Mailchimp Essentials MC15971334.pdf"]
["2022-07-08","PEREGRINE AVIONI DES:QUICKBOOKS ID:375020979 INDN:AVIAGLOBAL GROUP, LLC CO ID:1722616653 PPD",3000,3553.47,"","Peregrine"]
["2022-07-20","MailChimp 07/20 PURCHASE Atlanta GA DEBIT CARD *7411",-59,3464.86,"LRC","Peregrine","Mailchimp","221020 - LRC ADS_BG ER Peregrine Billable 13-2022","015-22","220720 - Peregrine - Mailchimp Essentials MC16197922.pdf"]
["2022-08-08","PEREGRINE AVIONI DES:QUICKBOOKS ID:375020979 INDN:AVIAGLOBAL GROUP, LLC CO ID:1722616653 PPD",3000,6314.91,"","Peregrine"]
["2022-08-22","MailChimp 08/20 PURCHASE Atlanta GA DEBIT CARD *7411",-59,6226.3,"LRC","Peregrine","Mailchimp","221020 - LRC ADS_BG ER Peregrine Billable 13-2022","015-22","220820 - Peregrine - Mailchimp Essentials MC16420842.pdf"]
["2022-08-31","PEREGRINE AVIONI DES:QUICKBOOKS ID:375020979 INDN:AVIAGLOBAL GROUP, LLC CO ID:1722616653 PPD",3194.99,9421.2900000000009,"","Peregrine"]
["2022-09-14","PEREGRINE AVIONI DES:QUICKBOOKS ID:375020979 INDN:AVIAGLOBAL GROUP, LLC CO ID:1722616653 PPD",3000,3964.34,"","Peregrine"]
["2022-09-20","MailChimp 09/20 PURCHASE Atlanta GA DEBIT CARD *7411",-59,3875.7300000000005,"LRC","Peregrine","Mailchimp","221020 - LRC ADS_BG ER Peregrine Billable 13-2022","015-22","220920 - Peregrine - Mailchimp Essentials MC16642305.pdf"]
["2022-10-06","DOWNLOAD-MONITOR. 10/06 PURCHASE BUCURESTI DEBIT CARD *7429",-159,3686.7800000000007,"FWC","Peregrine",null,"221201 - FWC ER Peregrine Billable EOY-2022","018-22","Peregrine - Download Monitor Invoice-3198.pdf"]
["2022-10-06","INTERNATIONAL TRANSACTION FEE 10/06 DOWNLOAD-MONITOR. BUCURESTI DEBIT CARD *7429",-4.7699999999999996,3682.0100000000007,"FWC","Peregrine",null,"221201 - FWC ER Peregrine Billable EOY-2022","018-22","221006 - INTERNATIONAL TRANSACTION FEE DOWNLOAD-MONITOR"]
["2022-10-20","MailChimp 10/20 PURCHASE Atlanta GA DEBIT CARD *7411",-59,3593.400000000001,"LRC","Peregrine","Mailchimp","221020 - LRC ADS_BG ER Peregrine Billable 13-2022","015-22","221020 - Peregrine - Mailchimp Essentials MC16642305.pdf"]
["2022-11-02","PEREGRINE AVIONI DES:QUICKBOOKS ID:375020979 INDN:AVIAGLOBAL GROUP, LLC CO ID:1722616653 PPD",2000,5510.9500000000007,"","Peregrine"]
["2022-11-21","MailChimp 11/20 PURCHASE Atlanta GA DEBIT CARD *7411",-59,5422.3400000000011,"LRC","Peregrine","Mailchimp","221201 - LRC ADS_BG ER Peregrine Billable 14-2022","017-22","221120 - Peregrine - Mailchimp Essentials MC17092309.pdf"]
["2022-11-28","INMOTIONHOSTING.C 11/25 PURCHASE 888-3214678 CA DEBIT CARD *7429",-479.85,4822.5000000000009,"FWC","Peregrine",null,"221201 - FWC ER Peregrine Billable EOY-2022","018-22","Peregrine - InMotion Hosting - Receipt - IMH-414-1451828-5.pdf"]
["2022-12-09","PEREGRINE AVIONI DES:QUICKBOOKS ID:375020979 INDN:AVIAGLOBAL GROUP, LLC CO ID:1722616653 PPD",2000,6792.5500000000011,"","Peregrine"]
["2022-12-20","PEREGRINE AVIONI DES:QUICKBOOKS ID:375020979 INDN:AVIAGLOBAL GROUP, LLC CO ID:1722616653 PPD",7063.61,13786.970000000001,"","Peregrine"]
["2022-12-20","MailChimp 12/20 PURCHASE Atlanta GA DEBIT CARD *7411",-59,13727.970000000001,"LRC","Peregrine","Mailchimp","221223 - LRC ADS_BG ER Peregrine Billable 17-2022","004-23","221220 - Peregrine - Mailchimp Essentials MC17309841.pdf"]
["2023-01-05","PEREGRINE AVIONI DES:QUICKBOOKS ID:375020979 INDN:AVIAGLOBAL GROUP, LLC CO ID:1722616653 PPD",441.97,2601.0500000000011,null,"Peregrine"]
["2023-01-20","Mailchimp 01/20 PURCHASE Atlanta GA DEBIT CARD *7411",-69,1875.3300000000013,"LRC","Peregrine",null,null,"002-23","230120 - Peregrine - Mailchimp Essentials MC17521714.pdf"]
["2023-01-24","ELEMENTOR 01/24 PURCHASE WILMINGTON DE DEBIT CARD *7429",-49,1826.3300000000013,"FWC","Peregrine",null,null,"004-23"]
["2023-01-25","REALLY-SIMPLE-SSL 01/24 PURCHASE GRONINGEN DEBIT CARD *7429",-23.2,1803.1300000000012,"FWC","Peregrine",null,null,"004-23"]
["2023-01-25","COMPLIANZ-GDPR-PR 01/25 PURCHASE GRONINGEN DEBIT CARD *7429",-45,1758.1300000000012,"FWC","Peregrine",null,null,"004-23"]
["2023-01-25","INTERNATIONAL TRANSACTION FEE 01/25 COMPLIANZ-GDPR-PR GRONINGEN DEBIT CARD *7429",-1.35,1756.7800000000013,"FWC","Peregrine",null,null,"004-23"]
["2023-01-25","INTERNATIONAL TRANSACTION FEE 01/24 REALLY-SIMPLE-SSL GRONINGEN DEBIT CARD *7429",-0.7,1756.0800000000013,"FWC","Peregrine",null,null,"004-23"]
["2023-02-15","PEREGRINE AVIONI DES:QUICKBOOKS ID:375020979 INDN:AVIAGLOBAL GROUP, LLC CO ID:1722616653 PPD",2000,3708.1400000000012,null,"Peregrine"]
["2023-02-21","Mailchimp 02/20 PURCHASE Atlanta GA DEBIT CARD *7411",-69,3625.4100000000012,"LRC","Peregrine",null,null,"002-23"]
[]
[]
[null,null,{"$f":"SUM(C148:C200)","v":32898.740000000005}]
[null,null,{"$f":"-Sheet4!D39-Sheet4!C39","v":-37214.99}]
[null,null,{"$f":"SUM(C203:C204)","v":-4316.2499999999927}]

{"sheet":"Lookup","index":2,"n_rows":5,"n_cols":3,"rows_kept":5,"cut":false,"hidden":false,"merged":[]}
[]
[null,"Debit card","Who"]
[null,"0975","HEA"]
[null,"7411","LRC"]
[null,"7429","FWC"]

{"sheet":"Sheet3","index":3,"n_rows":8,"n_cols":10,"rows_kept":8,"cut":false,"hidden":false,"merged":[]}
["15‐Mar‐22 AGG MasterCard G150 campaign Stamps.com Mailing material 30.12$ US 1.00 30.12$ ",null,null,null,null,null,null,null,null,30.12]
["15‐Mar‐22 AGG MasterCard G150 campaign Amazon Brochure stock, envelopes 66.66$ US 1.00 66.66$ ",null,null,null,null,null,null,null,null,66.66]
["17‐Mar‐22 ADS‐B Global G150 campaign ADS‐B Glbl Brochure printing two‐sided color laser 180 US 0.50 90.00$ "]
["18‐Mar‐22 AGG MasterCard G150 campaign Stamps.com USPS STAMPS 50.00$ US 1.00 50.00$ ",null,null,null,null,null,null,null,null,50]
["18‐Mar‐22 AGG MasterCard G150 campaign Stamps.com USPS STAMPS 100.00$ US 1.00 100.00$ ",null,null,null,null,null,null,null,null,100]
["18‐Mar‐22 AGG MasterCard G150 campaign Amazon Brochure stock 29.63$ US 1.00 29.63$ ",null,null,null,null,null,null,null,null,29.63]
["20‐Mar‐22 AGG MasterCard Dues/Subscriptions Mailchimp Mailchimp Essentials 59.00$ US 1.00 59.00$ ",null,null,null,null,null,null,null,null,59]
["23‐Mar‐22 AGG MasterCard G150 campaign Stamps.com USPS STAMPS 25.00$ US 1.00 25.00",null,null,null,null,null,null,null,null,25]

{"sheet":"Sheet2","index":4,"n_rows":48,"n_cols":8,"rows_kept":48,"cut":false,"hidden":false,"merged":[]}
["Column1","Column2","Column3","Column4","Column5","Column6","Column7","Column8"]
[11.62,null,null,null,null,null,null," - AGG - Mailchimp Essentials "]
[]
["MC15956138 ",null,null,null,null,{"$f":"F8&$H$2&TRIM(A4)&\".pdf\"","v":"220618 - AGG - Mailchimp Essentials MC15956138.pdf"}]
[]
["Essentials plan (500 contacts)"]
[]
["Sat, Jun 18, 2022 3:18 am",null,null,null,{"$f":"DATEVALUE(MID(A8,6,12))","v":"2022-06-18"},{"$f":"TEXT(E8,\"YYMMDD\")","v":"220618"}]
[]
[11.62]
[]
["MC15724938 ",null,null,null,null,{"$f":"F16&$H$2&TRIM(A12)&\".pdf\"","v":"220518 - AGG - Mailchimp Essentials MC15724938.pdf"}]
[]
["Essentials plan (500 contacts)"]
[]
["Wed, May 18, 2022 3:35 am",null,null,null,{"$f":"DATEVALUE(MID(A16,6,12))","v":"2022-05-18"},{"$f":"TEXT(E16,\"YYMMDD\")","v":"220518"}]
[]
[11.62]
[]
["MC15490450 ",null,null,null,null,{"$f":"F24&$H$2&TRIM(A20)&\".pdf\"","v":"220418 - AGG - Mailchimp Essentials MC15490450.pdf"}]
[]
["Essentials plan (500 contacts)"]
[]
["Mon, Apr 18, 2022 3:35 am",null,null,null,{"$f":"DATEVALUE(MID(A24,6,12))","v":"2022-04-18"},{"$f":"TEXT(E24,\"YYMMDD\")","v":"220418"}]
[]
[11.62]
[]
["MC15252178 ",null,null,null,null,{"$f":"F32&$H$2&TRIM(A28)&\".pdf\"","v":"220318 - AGG - Mailchimp Essentials MC15252178.pdf"}]
[]
["Essentials plan (500 contacts)"]
[]
["Fri, Mar 18, 2022 3:34 am",null,null,null,{"$f":"DATEVALUE(MID(A32,6,12))","v":"2022-03-18"},{"$f":"TEXT(E32,\"YYMMDD\")","v":"220318"}]
[]
[11.62]
[]
["MC15010226 ",null,null,null,null,{"$f":"F40&$H$2&TRIM(A36)&\".pdf\"","v":"220218 - AGG - Mailchimp Essentials MC15010226.pdf"}]
[]
["Essentials plan (500 contacts)"]
[]
["Fri, Feb 18, 2022 2:35 am",null,null,null,{"$f":"DATEVALUE(MID(A40,6,12))","v":"2022-02-18"},{"$f":"TEXT(E40,\"YYMMDD\")","v":"220218"}]
[]
[9.49]
[]
["MC14760854 "]
[]
["Essentials plan (500 contacts)"]
[]
["Tue, Jan 18, 2022 3:11 am"]

{"sheet":"Sheet1","index":5,"n_rows":26,"n_cols":9,"rows_kept":26,"cut":false,"hidden":false,"merged":[]}
["W:\\$ AviaGlobalGroup\\AGG Finance\\AGG Credit Card Receipts\\*AGG*"]
[null,null,null,null,null,null,null,null,{"$f":"IFERROR(INDEX(ListOfFiles,ROW()-2),\"\")","v":""}]
[null,null,null,null,null,null,null,null,{"$f":"IFERROR(INDEX(ListOfFiles,ROW()-2),\"\")","v":""}]
[{"$f":"IFERROR(INDEX(FileNameList,ROW()-2),\"\")","v":""},null,null,null,null,null,null,null,{"$f":"IFERROR(INDEX(ListOfFiles,ROW()-2),\"\")","v":""}]
[null,null,null,null,null,null,null,null,{"$f":"IFERROR(INDEX(ListOfFiles,ROW()-2),\"\")","v":""}]
[null,null,null,null,null,null,null,null,{"$f":"IFERROR(INDEX(ListOfFiles,ROW()-2),\"\")","v":""}]
[null,null,null,null,null,null,null,null,{"$f":"IFERROR(INDEX(ListOfFiles,ROW()-2),\"\")","v":""}]
[null,null,null,null,null,null,null,null,{"$f":"IFERROR(INDEX(ListOfFiles,ROW()-2),\"\")","v":""}]
[null,null,null,null,null,null,null,null,{"$f":"IFERROR(INDEX(ListOfFiles,ROW()-2),\"\")","v":""}]
[null,null,null,null,null,null,null,null,{"$f":"IFERROR(INDEX(ListOfFiles,ROW()-2),\"\")","v":""}]
[null,null,null,null,null,null,null,null,{"$f":"IFERROR(INDEX(ListOfFiles,ROW()-2),\"\")","v":""}]
[null,null,null,null,null,null,null,null,{"$f":"IFERROR(INDEX(ListOfFiles,ROW()-2),\"\")","v":""}]
[null,null,null,null,null,null,null,null,{"$f":"IFERROR(INDEX(ListOfFiles,ROW()-2),\"\")","v":""}]
[null,null,null,null,null,null,null,null,{"$f":"IFERROR(INDEX(ListOfFiles,ROW()-2),\"\")","v":""}]
[null,null,null,null,null,null,null,null,{"$f":"IFERROR(INDEX(ListOfFiles,ROW()-2),\"\")","v":""}]
[null,null,null,null,null,null,null,null,{"$f":"IFERROR(INDEX(ListOfFiles,ROW()-2),\"\")","v":""}]
[null,null,null,null,null,null,null,null,{"$f":"IFERROR(INDEX(ListOfFiles,ROW()-2),\"\")","v":""}]
[null,null,null,null,null,null,null,null,{"$f":"IFERROR(INDEX(ListOfFiles,ROW()-2),\"\")","v":""}]
[null,null,null,null,null,null,null,null,{"$f":"IFERROR(INDEX(ListOfFiles,ROW()-2),\"\")","v":""}]
[null,null,null,null,null,null,null,null,{"$f":"IFERROR(INDEX(ListOfFiles,ROW()-2),\"\")","v":""}]
[null,null,null,null,null,null,null,null,{"$f":"IFERROR(INDEX(ListOfFiles,ROW()-2),\"\")","v":""}]
[null,null,null,null,null,null,null,null,{"$f":"IFERROR(INDEX(ListOfFiles,ROW()-2),\"\")","v":""}]
[null,null,null,null,null,null,null,null,{"$f":"IFERROR(INDEX(ListOfFiles,ROW()-2),\"\")","v":""}]
[null,null,null,null,null,null,null,null,{"$f":"IFERROR(INDEX(ListOfFiles,ROW()-2),\"\")","v":""}]
[null,null,null,null,null,null,null,null,{"$f":"IFERROR(INDEX(ListOfFiles,ROW()-2),\"\")","v":""}]
[null,null,null,null,null,null,null,null,{"$f":"IFERROR(INDEX(ListOfFiles,ROW()-2),\"\")","v":""}]

{"sheet":"Sheet4","index":6,"n_rows":56,"n_cols":14,"rows_kept":56,"cut":false,"hidden":false,"merged":[]}
[null,"AGG MC","Adder","Total",null,null,null,"Invoice Month",null,"Invoice Number","Invoice ","Amount","Invoice Date","Posted"]
["-",{"$f":"-SUMIFS('Peregrine transactions'!$C$1:$C$144,'Peregrine transactions'!$I$1:$I$144,Sheet4!A2,'Peregrine transactions'!$F$1:$F$144,\"Peregrine\")","v":0},null,{"$f":"B2+C2","v":0},null,null,null,null,null,null,null,4138]
["002-23",{"$f":"-SUMIFS('Peregrine transactions'!$C$1:$C$144,'Peregrine transactions'!$I$1:$I$144,Sheet4!A3,'Peregrine transactions'!$F$1:$F$144,\"Peregrine\")","v":138},null,{"$f":"B3+C3","v":138},null,null,null,"Feb?","WWW Support/ Enhanced","AGGPERAPA Inv 002-22",{"$f":"RIGHT(J3,6)","v":"002-22"},3000,"2022-02-15","2022-03-17"]
["006-22",{"$f":"-SUMIFS('Peregrine transactions'!$C$1:$C$144,'Peregrine transactions'!$I$1:$I$144,Sheet4!A4,'Peregrine transactions'!$F$1:$F$144,\"Peregrine\")","v":360.41},90,{"$f":"B4+C4","v":450.41},true,null,null,null,"Expenses","AGGPERAPA ERInv 003-22",{"$f":"RIGHT(J4,6)","v":"003-22"},850,"2022-02-21","2022-03-17"]
["011-22",{"$f":"-SUMIFS('Peregrine transactions'!$C$1:$C$144,'Peregrine transactions'!$I$1:$I$144,Sheet4!A5,'Peregrine transactions'!$F$1:$F$144,\"Peregrine\")","v":194.99},null,{"$f":"B5+C5","v":194.99},true,null,null,null,null,"Payment",null,-3850,null,"2022-03-17"]
["015-22",{"$f":"-SUMIFS('Peregrine transactions'!$C$1:$C$144,'Peregrine transactions'!$I$1:$I$144,Sheet4!A6,'Peregrine transactions'!$F$1:$F$144,\"Peregrine\")","v":236},null,{"$f":"B6+C6","v":236},true,null,null,"Mar?","WWW Support/ Enhanced","AGGPERAPA Inv 004-22",{"$f":"RIGHT(J6,6)","v":"004-22"},3000,"2022-03-15","2022-04-20"]
["017-22",{"$f":"-SUMIFS('Peregrine transactions'!$C$1:$C$144,'Peregrine transactions'!$I$1:$I$144,Sheet4!A7,'Peregrine transactions'!$F$1:$F$144,\"Peregrine\")","v":59},null,{"$f":"B7+C7","v":59},true,null,null,null,"Expenses","AGGPERAPA ERInv 005-22","005-22",106.69,"2022-03-15","2022-04-20"]
["018-22",{"$f":"-SUMIFS('Peregrine transactions'!$C$1:$C$144,'Peregrine transactions'!$I$1:$I$144,Sheet4!A8,'Peregrine transactions'!$F$1:$F$144,\"Peregrine\")","v":643.62},124.99,{"$f":"B8+C8","v":768.61},true,null,null,null,"Expenses","AGGPERAPA ERInv 006-22","006-22",450.41,"2022-03-23","2022-04-20"]
["020-22",{"$f":"-SUMIFS('Peregrine transactions'!$C$1:$C$144,'Peregrine transactions'!$I$1:$I$144,Sheet4!A9,'Peregrine transactions'!$F$1:$F$144,\"Peregrine\")","v":441.97},null,{"$f":"B9+C9","v":441.97},true,null,null,null,null,"Payment",null,-3557.1,null,"2022-04-20"]
[null,null,null,null,null,null,null,"Apr?","WWW Support/ Enhanced","AGGPERAPA Inv 007-22",{"$f":"RIGHT(J10,6)","v":"007-22"},3000,"2022-04-18","2022-07-08"]
[null,"AGG MC","Adder","Retainer","Total",null,null,null,null,"Payment",null,-3000,null,"2022-07-08"]
["001-22",null,null,1500,{"$f":"SUM(B12:D12)","v":1500},{"$f":"E12","v":1500},null,"May?","WWW Support/ Enhanced","AGGPERAPA Inv 008-22",{"$f":"RIGHT(J12,6)","v":"008-22"},3000,"2022-05-26","2022-08-08"]
["001-22",null,null,1500,{"$f":"SUM(B13:D13)","v":1500},{"$f":"E13","v":1500},null,null,null,"Payment",null,-3000,null,"2022-08-08"]
["002-22",{"$f":"IFERROR(INDEX($A$2:$D$9,MATCH(A14,$A$2:$A$9,0),2),0)","v":0},{"$f":"IFERROR(INDEX($A$2:$D$9,MATCH(A14,$A$2:$A$9,0),3),0)","v":0},3000,{"$f":"SUM(B14:D14)","v":3000},{"$f":"E14","v":3000},null,"Jun?","WWW Support/ Enhanced","AGGPERAPA Inv 009-22",{"$f":"RIGHT(J14,6)","v":"009-22"},3000,"2022-06-16","2022-08-31"]
["003-22",850,0,null,{"$f":"SUM(B15:D15)","v":850},{"$f":"-E15","v":-850},null,null,"Expenses","AGGPERAPA ERInv 011-22","011-22",194.99,"2022-07-15","2022-08-31"]
["004-22",{"$f":"IFERROR(INDEX($A$2:$D$9,MATCH(A16,$A$2:$A$9,0),2),0)","v":0},0,3000,{"$f":"SUM(B16:D16)","v":3000},{"$f":"E16","v":3000},null,null,null,"Payment",null,-3194.99,null,"2022-08-31"]
["005-22",106.69,0,null,106.69,{"$f":"-E17","v":-106.69},null,"Jul?","WWW Support/ Enhanced","AGGPERAPA Inv 010-22",{"$f":"RIGHT(J17,6)","v":"010-22"},3000,"2022-07-15","2022-09-14"]
["006-22",360.41,90,null,450.41,-450.41,null,null,null,"Payment",null,-3000,null,"2022-09-14"]
["007-22",0,0,3000,{"$f":"SUM(B19:D19)","v":3000},{"$f":"E19","v":3000},null,"Aug?","WWW Support","AGGPERAPA Inv 012-22",{"$f":"RIGHT(J19,6)","v":"012-22"},2000,"2022-08-01","2022-11-02"]
["008-22",0,0,3000,{"$f":"SUM(B20:D20)","v":3000},3000,null,null,null,"Payment",null,-2000,null,"2022-11-02"]
["009-22",0,0,3000,{"$f":"SUM(B21:D21)","v":3000},3000,null,"Sept?","WWW Support","AGGPERAPA Inv 013-22",{"$f":"RIGHT(J21,6)","v":"013-22"},2000,"2022-09-01","2022-12-06"]
["011-22",194.99,0,null,194.99,{"$f":"-E22","v":-194.99},null,null,null,"Payment",null,-2000,null,"2022-12-06"]
["010-22",0,0,3000,{"$f":"SUM(B23:D23)","v":3000},{"$f":"E23","v":3000},null,"Oct?","WWW Support","AGGPERAPA Inv 014-22",{"$f":"RIGHT(J23,6)","v":"014-22"},2000,"2022-10-01"]
["012-22",0,0,2000,{"$f":"SUM(B24:D24)","v":2000},2000,null,null,"Expenses (New ER)","AGGPERAPA Inv 015-22","015-22",236,"2022-11-10"]
["013-22",0,0,2000,{"$f":"SUM(B25:D25)","v":2000},2000,null,"Nov?","WWW Support","AGGPERAPA Inv 016-22","016-22",2000,"2022-12-02"]
["014-22",0,0,2000,{"$f":"SUM(B26:D26)","v":2000},2000,null,null,"Expenses (New LRC ER)","AGGPERAPA Inv 017-22","017-22",59,"2022-12-02"]
["015-22",236,0,null,236,{"$f":"-E27","v":-236},null,null,"Expenses (New FWC ER)","AGGPERAPA Inv 018-22","018-22",768.61,"2022-12-02"]
["016-22",0,0,2000,{"$f":"SUM(B28:D28)","v":2000},{"$f":"E28","v":2000},null,"Dec","WWW Support","AGGPERAPA Inv 019-22","019-22",2000,"2022-12-15"]
["017-22",59,0,null,59,{"$f":"-E29","v":-59},null,null,null,"Payment",null,-7063.61,null,"2022-12-20"]
["018-22",643.62,124.99,null,768.61,-768.61,null,"Jan","WWW Support","AGGPERAPA Inv 001-23",{"$f":"RIGHT(J30,6)","v":"001-23"},2000,"2023-01-15"]
["019-22",0,0,2000,{"$f":"SUM(B31:D31)","v":2000},{"$f":"E31","v":2000},null,null,null,"Payment",null,-2000,null,"2023-02-15"]
["020-22",441.97,{"$f":"IFERROR(INDEX($A$2:$D$9,MATCH(A32,$A$2:$A$9,0),3),0)","v":0},null,{"$f":"SUM(B32:D32)","v":441.97},{"$f":"-E32","v":-441.97}]
["001-23",0,0,2000,{"$f":"SUM(B33:D33)","v":2000},{"$f":"E33","v":2000},null,null,"Mailchimp Expenses","AGGPERAPA Inv 002-23",{"$f":"RIGHT(J33,6)","v":"002-23"},138]
["002-23",138,0,2000,{"$f":"SUM(B34:D34)","v":2138},{"$f":"E34-B34-B34","v":1862},null,"Feb","WWW Support","AGGPERAPA Inv 002-23","002-23",2000,"2023-02-20"]
["003-23",0,{"$f":"IFERROR(INDEX($A$2:$D$9,MATCH(A35,$A$2:$A$9,0),3),0)","v":0},2000,{"$f":"SUM(B35:D35)","v":2000},2000,null,"Feb","G150 Commision","AGGPERAPA Inv 003-23","003-23",2000,"2023-02-20"]
["004-23",59,0,null,{"$f":"SUM(B36:D36)","v":59},{"$f":"-E36","v":-59}]
["004-23",119.25,0,null,{"$f":"SUM(B37:D37)","v":119.25},{"$f":"-E37","v":-119.25}]
[]
[null,{"$f":"SUM(B13:B37)","v":3208.9300000000003},{"$f":"SUM(C13:C37)","v":214.99},{"$f":"SUM(D12:D37)","v":37000},{"$f":"SUM(E13:E37)","v":38923.919999999998}]
[]
[null,{"$f":"SUM(B14:B33)","v":2892.6800000000003},{"$f":"SUM(C14:C33)","v":214.99},{"$f":"SUM(D14:D33)","v":30000},{"$f":"SUM(E14:E33)","v":33107.67}]
[]
[]
[null,null,null,null,1500]
[null,null,null,null,1500]
[null,null,null,null,3850]
[null,null,null,null,3557.1]
[null,null,null,null,3000]
[null,null,null,null,3000]
[null,null,null,null,3194.99]
[null,null,null,null,3000]
[null,null,null,null,2000]
[null,null,null,null,2000]
[null,null,null,null,7063.61]
[null,null,null,null,441.97]
[null,null,null,null,2000]